Workbook

Sheet Cover Page
D1: Add company logo
N2: Version 24.2a (for incinerators) - 27/11/24
N4: Note that there is another version of this template available for co-incinerators
B8: Add photo
N13: Notes:
N14: This template may require adjustments by individual operators to meet specific reporting requirements as defined in the site Permit(s)
B29: Annual Performance Report 2024
B31: Permit EPR/SP3034SN
B33: Eastcroft EfW Site
B37: WasteNotts (Reclamation) Limited
B39: Year: | C39: 2024
B41: Address: | C41: Incinerator Road, Off Cattle Market Road, Nottingham NG23JH
B43: Tel: | C43: 0115 9869505
B45: Email: | C45: leigh.hornsby@fccenvironment.co.uk
B47: Prepared by: | C47: Leigh Hornsby | F47: Position: | G47: Environment Manager
B49: Approved by: | C49: Ashley Corke | F49: Position: | G49: General Manager
B51: Version: | C51: 1
B53: Issue Date: | C53: 2025-01-31

Sheet Facility Info
A1: =+'Cover Page'!$B$29 -> Annual Performance Report 2024 | E1: =+'Cover Page'!$B$33 -> Eastcroft EfW Site
A3: Plant Description and Design | K3: Notes:
A5: The EfW facility currently comprises two incineration streams each capable of burning up to 11.7 tonnes/hour of municipal and light commercial and industrial waste. The plant has a theoretical capacity of just over 200,000 tonnes per annum; however with planned maintenance the annual throughput is approximately 185,000 tonnes. The site has planning permission to add a third line to the plant which is included in the scope of the Environmental Permit (EP3034SN) but has yet to be developed. The facility generates around 50 tonnes of steam per hour with no electrical generation undertaken at the Eastcroft facility. Steam is exported to a third party (Nottingham City Council, formerly EnviroEnergy) who operate a combined heat and power facility providing electricity and feeding into Nottingham's district heating network. | K5: Include summary of plant design, design capacity, no. of combustion lines, electrical and heat capacity and any other general information that describes the facility, its location and purpose
A20: Summary of Operational Processes and Procedures
A22: Municipal waste and non-hazardous commercial/industrial/trade waste is delivered to site by lorry and tipped into one of two refuse bunkers inside the tipping hall. Deliveries are typically made from Monday to Saturday morning. Waste is transferred from the bunkers by grab crane into the feed chute of each incinerator stream. Waste is only fed to the incinerator if the temperature is above 850°C. Each incinerator stream has a moving grate on which the waste is burned, with preheated air being injected from below the grate. Combustion air is drawn from the tipping hall and boiler hall to reduce odours and dust levels in these areas and fed to the furnace via an air preheater which can raise the temperature of the air up to 160°C. Two auxiliary burners, fired on gas oil, are installed halfway up each combustion chamber to maintain temperatures above the 850°C threshold. The auxiliary burners are also used to pre-heat the incinerators before start up. Ammonium hydroxide is injected into the furnaces to reduce emissions of nitrogen oxides (this technique is known as selective non-catalytic reduction or SNCR). Hot gases from the combustion chamber pass to a boiler in which steam is raised and sent to the London Road Heat Station (operated by Nottingham City Council, formerly EnviroEnergy) for supply of heat to the district heating system and generation of electricity. Flue gases leaving the boiler are cooled to about 130°C in the economiser to achieve the correct temperature for gas treatment. Incinerator bottom ash is quenched in water and collected in a residuals bunker inside the building. The silo is emptied regularly and the bottom ash is sent for metal extraction and use as a substitute aggregate. Fly ash entrained within the incinerator exhaust gases, together with any accumulations of dust removed from the walls of the economiser by the shot cleaning system, is treated in the air pollution control equipment. Each incinerator stream has its own dedicated air pollution control equipment. Cooled flue gases leaving the economiser are dosed with a mixture of hydrated lime, activated carbon and recirculated reagent, in order to reduce acid gases (by reaction with the lime), and other substances such as heavy metals and hydrocarbons (by adsorption onto the activated carbon). The exhaust gases and reagent particles are then filtered in a four compartment fabric filter to remove the dust burden. The fabric filters are regularly cleaned by reverse jet pulses, and the collected end product is stored in the APC residue silo. The APC residue silo is regularly emptied and the residue used to treat industrial acidic wastes before final disposal in a suitably licensed landfill site. The treated exhaust gases from both streams are discharged via the 91m high stack. The final emissions from the municipal waste incinerator are continuously monitored for particulate matter, sulphur dioxide, nitrogen oxides, carbon monoxide, hydrogen chloride, volatile organic compounds, nitrous oxide, carbon dioxide and ammonia prior to entry into the main stack. | K22: Include summary of key processes and procedures such as (but not limited to); waste reception, control rooms, grate, bed and boiler, energy & heat generation, cooling systems, residue management, emission controls, health and safety systems, maintenance

Sheet Contents
A1: =+'Cover Page'!$B$29 -> Annual Performance Report 2024 | E1: =+'Cover Page'!$B$33 -> Eastcroft EfW Site
A3: Contents | K3: Notes:
A4: Section | B4: Subject | H4: Page | K4: Section references and Page nos. to be inserted
B5: Facility Information | H5: 1 | K5: Sections and Subjects may require adjustment by individual operators to meet specific reporting requirements as defined in the sites Permit(s)
B6: Operational Data | H6: 3
B7: Operational Summary | H7: 4
B8: Performance Form 1 | H8: 5
B9: Energy Form 1 | H9: 6
B10: Permit Compliance | H10: 7
B11: Improvements | H11: 8
B12: Public Liaison | H12: 9
B13: Carbon dioxide and nitrous oxide emissions | H13: 10
B14: Residue Quality | H14: 11
B15: Emissions to Water | H15: 12
B16: Emissions to Air (periodically monitored) | H16: 13
B17: Emissions to Air (continuously monitored) | H17: 14
B18: Hydrogen Chloride emissions | H18: 15
B19: Sulphur Dioxide emissions | H19: 16
B20: Oxides of Nitrogen emissions | H20: 17
B21: Total Organic Carbon emissions | H21: 18
B22: Particulate Matter emissions | H22: 19
B23: Carbon Monoxide emissions | H23: 20
B24: Ammonia emissions | H24: 21
A27: Version Control
A28: Section | B28: Information | H28: Date
A29: 1.1 | H29: 2025-01-31
A35: Distribution
A36: Copy | B36: Name, Role | H36: No.
A45: This report is required under the Industrial Emissions Directive’s Article 55(2) requirements on reporting and public information on waste incineration plants and co-incineration plants, which require the operator to produce an annual report on the functioning and monitoring of the plant and make it available to the public.

Sheet Operational Data
A1: =+'Cover Page'!$B$29 -> Annual Performance Report 2024 | E1: =+'Cover Page'!$B$33 -> Eastcroft EfW Site
A3: Operational Data
A4: Plant Size | B4: 200000 | D4: tonnes pa | E4: 20 | F4: MWth | H4: MWe | J4: Notes:
A5: No. of combustion lines | B5: 2 | D5: No. of Turbines: | F5: 0 | J5: * - RDF to include SRF
J6: ** - Combusted tonnage = tonnes delivered in period + (tonnes in bunker at start of period – tonnes in bunker at end of period), or equivalent calculation depending on plant type
A7: Waste types received | B7: Unit | C7: Q1 | D7: Q2 | E7: Q3 | F7: Q4 | G7: Year Total | H7: %
A8: Household / Local Authority | B8: tonnes | C8: 47046 | D8: 40766 | E8: 36140 | F8: 46191 | G8: =SUM(C8:F8) -> 170143 | H8: =IF(G8>0,G8/$G$18,"-") -> 0.9019263798
A9: Commercial & Industrial | C9: 3989 | D9: 4755 | E9: 3509 | F9: 6248 | G9: =SUM(C9:F9) -> 18501 | H9: 0.09807362015 | J9: *** - CHP plants only
A10: Hazardous | G10: 0 | H10: - | J10: **** Availability Definition: 'the availability of a line is to be calculated by the number of hours the line reported Continuously Monitored emission levels to the Regulator through the calendar year divided by the total number of hours in that year. The overall plant availability is calculated as the Mean of all lines in the plant. For clarity this includes periods of abnormal operation.' Rationale: The primary function of an Energy from Waste facility is the disposal of waste. It follows therefore that the availability of a plant is determined by the period of time a facility spends undertaking this activity.
A11: Clinical | G11: 0 | H11: -
A12: Waste wood (biomass) | G12: 0 | H12: -
A13: Refuse Derived Fuel * - H'hold/LA | G13: =SUM(C13:F13) -> 0 | H13: -
A14: Refuse Derived Fuel * - C&I | G14: 0 | H14: -
A15: Other [Please specify] | G15: 0 | H15: -
A16: Other [Please specify] | G16: 0 | H16: -
A17: Other [Please specify] | G17: 0 | H17: -
A18: Total waste received | C18: =SUM(C8:C17) -> 51035 | D18: =SUM(D8:D17) -> 45521 | E18: =SUM(E8:E17) -> 39649 | F18: =SUM(F8:F17) -> 52439 | G18: 188644
A19: Rejected Waste | G19: =SUM(C19:F19) -> 0 | H19: =IF(G19>0,G19/$G$18,"-") -> -
A20: Unprocessed waste transferred out | G20: =SUM(C20:F20) -> 0 | H20: =IF(G20>0,G20/$G$18,"-") -> -
A21: Total waste combusted ** | C21: 50548 | D21: 45716 | E21: 40468 | F21: 52370 | G21: =SUM(C21:F21) -> 189102
J22: Password for protected cells A password has been set to prevent accidental editing of cells with formulae. If you still need to make an edit for some reason then the password = 1234
A23: Energy Usage / Export | B23: Unit | C23: Q1 | D23: Q2 | E23: Q3 | F23: Q4 | G23: Year Total | H23: KWh/te
A24: Power Generated | B24: MWh | G24: =SUM(C24:F24) -> 0 | H24: =IF(G24>0,G24*1000/$G$21,"-") -> -
A25: Power Exported | G25: =SUM(C25:F25) -> 0 | H25: =IF(G25>0,G25*1000/$G$21,"-") -> -
A26: Power Used on site | C26: 2844 | D26: 2476 | E26: 1988 | F26: 2628 | G26: =SUM(C26:F26) -> 9936 | H26: =IF(G26>0,G26*1000/$G$21,"-") -> 52.54307199
A27: Power Imported | C27: 2844 | D27: 2476 | E27: 1988 | F27: 2628 | G27: 9936 | H27: =IF(G27>0,G27*1000/$G$21,"-") -> 52.54307199
A28: Parasitic Load | B28: % | C28: =IF(C24>0,1-C25/(C24+C27),"-") -> - | D28: =IF(D24>0,1-D25/(D24+D27),"-") -> - | E28: =IF(E24>0,1-E25/(E24+E27),"-") -> - | F28: =IF(F24>0,1-F25/(F24+F27),"-") -> - | G28: =IF(G24>0,1-G25/(G24+G27),"-") -> -
A29: Thermal Energy Produced *** | B29: MWh | C29: 112327 | D29: 84517 | E29: 81915 | F29: 101393 | G29: =SUM(C29:F29) -> 380152 | H29: =IF(G29>0,G29*1000/$G$21,"-") -> 2010.301319
A30: Thermal Energy Exported *** | C30: 112327 | D30: 84517 | E30: 81915 | F30: 101393 | G30: 380152 | H30: =IF(G30>0,G30*1000/$G$21,"-") -> 2010.301319
A31: R1 value (if applicable) | B31: R1
A33: Waste Disposal & Recovery | B33: Unit | C33: Q1 | D33: Q2 | E33: Q3 | F33: Q4 | G33: Year Total | H33: % inputs
A34: APC Residues - produced | B34: tonnes | C34: 1348 | D34: 1178 | E34: 920 | F34: 1273 | G34: =SUM(C34:F34) -> 4719 | H34: =IF(G34>0,G34/$G$21,"-") -> 0.02495478631
A35: IBA - produced | C35: 9218 | D35: 8662 | E35: 7265 | F35: 9318 | G35: 34463 | H35: =IF(G35>0,G35/$G$21,"-") -> 0.1822455606
A36: Metals recycling | G36: =SUM(C36:F36) -> 0 | H36: -
A37: Other | C37: 0 | D37: 0 | E37: 0 | F37: 0 | G37: =SUM(C37:F37) -> 0 | H37: -
A38: Other | C38: 0 | D38: 0 | E38: 0 | F38: 0 | G38: 0 | H38: -
A39: Other | C39: 0 | D39: 0 | E39: 0 | F39: 0 | G39: 0 | H39: -
A41: Raw Material Usage | B41: Unit | C41: Q1 | D41: Q2 | E41: Q3 | F41: Q4 | G41: Year Total | H41: kg or Ltr /te
A42: Mains Water | B42: ltrs | C42: 1430000 | D42: 691000 | E42: 2126000 | F42: 767000 | G42: =SUM(C42:F42) -> 5014000 | H42: =IF(G42>0,G42/$G$21,"-") -> 26.51479096
A43: Other Water | B43: ltrs | G43: 0 | H43: =IF(G43>0,G43/$G$21,"-") -> -
A44: Ammonia | B44: kgs | C44: 130000 | D44: 117000 | E44: 98000 | F44: 128000 | G44: 473000 | H44: 2.501295597
A45: Urea | B45: kgs | G45: =SUM(C45:F45) -> 0 | H45: -
A46: Activated Carbon | B46: kgs | C46: 102000 | D46: 52000 | E46: 45000 | F46: 62000 | G46: 261000 | H46: 1.380207507
A47: Lime / hydrated lime | B47: kgs | C47: 440000 | D47: 371000 | E47: 261000 | F47: 309000 | G47: 1381000 | H47: 7.302937039
A48: Fuel oil | B48: ltrs | C48: 34241 | D48: 15873 | E48: 67755 | F48: 30337 | G48: 148206 | H48: 0.7837357617
A49: Gas | B49: cuf | G49: 0
A50: Other | G50: 0
A52: Summary | B52: Line/Unit | C52: Q1 | D52: Q2 | E52: Q3 | F52: Q4 | G52: Year Total | I52: Hrs in year
A53: Availability of waste combustion by line, hrs **** | B53: =+B5 -> 2 | C53: 2165 | D53: 1886 | E53: 1726 | F53: 2153 | G53: =SUM(C53:F53) -> 7930 | H53: =+G53/$I$53 -> 0.9027777778 | I53: 8784 | J53: Change this figure to 8784 in a leap year
B54: 2 | C54: 2118.5 | D54: 1897 | E54: 1731 | F54: 2134.5 | G54: 7881 | H54: =+G54/$I$53 -> 0.8971994536
B55: 3 | G55: 0 | H55: 0
B56: 4 | G56: 0 | H56: 0
B57: 5 | G57: =SUM(C57:F57) -> 0 | H57: 0
A58: Overall Availability, mean avg. of all lines, hrs | G58: =AVERAGE(G53:G57) -> 3162.2 | H58: 0.3599954463
A59: Hours of turbine operations, hrs | B59: 1 | G59: 0 | H59: 0
A60: Hours of turbine operations, hrs | B60: 2 | G60: 0 | H60: 0
A61: Hours of heat / steam export | C61: =C53+C54 -> 4283.5 | D61: =D53+D54 -> 3783 | E61: 3457 | F61: 4287.5 | G61: 15811 | H61: =IF(B61>0,G60/I53,"n/a") -> n/a
A62: Net Calorific Value of waste | B62: MJ/kg | C62: 8.2 | D62: 8.1 | E62: 8 | F62: 8.3 | G62: 8.2
A63: Abnormal Events | B63: qty. | G63: 0 | H63: =IF(G63>0,"yes","no") -> no
A64: Abnormal operation | B64: hours | G64: 0 | H64: =+(G64)/I53 -> 0
A65: Permit Breaches | B65: qty. | C65: 18 | D65: 6 | E65: 12 | F65: 6 | G65: 42 | H65: =IF(G65>0,"yes","no") -> yes

Sheet Operational Summary
A1: =+'Cover Page'!$B$29 -> Annual Performance Report 2024 | E1: =+'Cover Page'!$B$33 -> Eastcroft EfW Site
A3: Summary of Plant Operations and Maintenance during the reporting year | K3: Notes:
A5: During 2024 the facility ran for 15,811 hours across the 2 lines representing an availability of 90% with 188,644 tonnes delivered to site compared to a permit limit of 200,000 tonnes per annum. Nearly all of this waste was delivered by the local authorities of Nottingham and the surrounding area and most other wastes being categorised as municipal (Chapter 20 of the List of Wastes Regulations). The facility submitted 36 schedule notification during the year describing 42 exceedences of an emission limit, 30 of which were minor TOC exceedances caused by gas cylinder explosions in the boiler with the remainder representing acid gas emissions caused by high sulphur and/or chlorine wastes. Environmental impact modelling of these events demonstrated no measurable environmental effect or exceedance of a relevant air quality threshold. The plant provided 380 GWh of energy in the form of steam and hot water to the Nottingham City Council (formerly EnviroEnergy) facility who operate a combined heat and power station, providing electricity to private customers, the national grid and providing heating to households and commercial premises through their district heating system. Eastcroft receives all electrical supply and water for the process from the Nottingham City Council facility. The main period of downtime related to a planned maintenance period within where routine maintenance that cannot be undertaken whilst the plant is operational took place. Several incidents of plant downtime to rectify damage to the grates and refractory caused by gas cylinder explosions occurred during the year .Further modifications and optimisation to the combustion and SNCR system were undertaken throughout the year. | K5: Include summary of key operational and/or maintenance activity undertaken in the year, such as any major component upgrades and/or replacements
A29: Summary of Residue Handling for the reporting year
A31: Incinerator Bottom Ash (IBA) is sampled 4 times per year for permit compliance purposes, in particular for Total Organic Content where the permit has a limit of 3%. Full compliance was achieved during 2023; no values were above 3% with an average value of 0.85% achieved. Additional testing of IBA is undertaken in order to correctly classify the IBA. 24 samples (2 per month) were taken in 2024 to assess for any hazardous content within the IBA. During 2024 all 24 sample results were returned confirming the classification of the IBA as non-hazardous. All metals within the IBA are sent along with the non-hazardous IBA to a third party company who operate a permitted facility dedicated to management of bottom ash. Metals are segregated and sent for recycling while the remaining incinerator bottom ash is used as a substitute aggregate material for use within the construction industry. Air Pollution Control Residues (APCr) formed from the cleaning of the flue gases are also analysed on a quarterly basis, albeit with no limits set within the permit. The APCr is tankered to a permitted treatment site where the material is used to neutralise highly acidic wastes before the resulting residue is sent for disposal. | K31: Include in here a summary of residue handling regimes and destinations
A54: =+'Cover Page'!C39 -> 2024 | B54: Plant shut-downs
A55: Date | B55: Reason for shut-down | K55: Provide a very brief reason for plant shut-down e.g. "Shut-down prior to major outage"; "Emergency shut-down due to boiler tube leak" There is no need to include periods of hot-standby here (e.g. to clear feed chute hopper blockages). For clinical waste incinerators which require regular shut-downs for boiler cleaning, there is no need to record these here.
A56: 2024-01-01 | B56: Grate repairs due to gas cylinder explosion
A57: 2024-01-05 | B57: ID fan trip
A58: 2024-02-04 | B58: Clearance of blocked ducting
A59: 2024-03-11 | B59: Clearance of blocked ducting
A60: 2024-03-14 | B60: Repairs to the baghouse
A61: 2024-04-17 | B61: Boiler Repairs
A62: 2024-04-20 | B62: Boiler Repairs
A63: 2024-05-23 | B63: Boiler Repars
A64: 2024-06-19 | B64: Annual Outage
A65: 2024-08-21 | B65: Steam Leak at Heat Station
A66: 2024-09-10 | B66: Issues with ID fan inverters
A67: 2024-09-11 | B67: Issues with ID fan inverters
A68: 2024-09-14 | B68: Issues with ID fan inverters
A69: 2024-11-06 | B69: Grate repairs due to gas cylinder explosion
A70: 2026-12-12 | B70: Boiler repairs
A71: 2024-12-23 | B71: Boiler repairs
A72: 2024-12-26 | B72: Boiler repairs
A73: 2024-12-28 | B73: Boiler repairs

Sheet Perf. Form 1
A1: =+'Cover Page'!C39 -> 2024 | B1: Annual Reporting Performance Form 1
A3: =+'Cover Page'!B31 -> Permit EPR/SP3034SN | F3: Operator: | G3: =+'Cover Page'!B37 -> WasteNotts (Reclamation) Limited
A4: Facility: | B4: =+'Cover Page'!B33:I33 -> Eastcroft EfW Site | F4: Form: | G4: Performance 1
A6: Reporting Period from: | D6: 2024-01-01 | F6: to: | G6: 2024-12-31
A8: =+A1 -> 2024 | B8: Annual Reporting of Waste Disposal and Recovery
A9: Waste Description | C9: Disposal Route(s) | E9: Disposal Tonnes | G9: Recovery Tonnes | I9: % / tonne of waste incinerated
A10: 1) Hazardous Wastes
A11: APC Residues | C11: D3 | E11: 4719 | I11: =IF((E11+G11)>0,(E11+G11)/'Operational Data'!$G$21, "-") -> 0.02495478631
A12: IBA | I12: =IF((E12+G12)>0,(E12+G12)/'Operational Data'!$G$21, "-") -> -
I13: =IF((E13+G13)>0,(E13+G13)/'Operational Data'!$G$21, "-") -> -
I14: =IF((E14+G14)>0,(E14+G14)/'Operational Data'!$G$21, "-") -> -
A15: Total Hazardous Waste | E15: =SUM(E11:F14) -> 4719 | G15: =SUM(G11:H14) -> 0 | I15: =IF((E15+G15)>0,(E15+G15)/'Operational Data'!$G$21, "-") -> 0.02495478631
A17: 2) Non-Hazardous Wastes
A18: IBA | C18: R05 | G18: 34463 | I18: =IF((E18+G18)>0,(E18+G18)/'Operational Data'!$G$21, "-") -> 0.1822455606
A19: Ferrous Metal | I19: =IF((E19+G19)>0,(E19+G19)/'Operational Data'!$G$21, "-") -> -
A20: Process Water | I20: =IF((E20+G20)>0,(E20+G20)/'Operational Data'!$G$21, "-") -> -
I21: =IF((E21+G21)>0,(E21+G21)/'Operational Data'!$G$21, "-") -> -
I22: =IF((E22+G22)>0,(E22+G22)/'Operational Data'!$G$21, "-") -> -
A23: Total Non-Hazardous Waste | E23: =SUM(E18:F22) -> 0 | G23: =SUM(G18:H22) -> 34463 | I23: =IF((E23+G23)>0,(E23+G23)/'Operational Data'!$G$21, "-") -> 0.1822455606
A24: TOTAL WASTE | E24: =+E23+E15 -> 4719 | G24: =+G23+G15 -> 34463 | I24: =IF((E24+G24)>0,(E24+G24)/'Operational Data'!$G$21, "-") -> 0.2072003469
A26: Operator’s comments :
A31: =+A1 -> 2024 | B31: Annual Reporting of Water and Other Raw Material Usage
A32: Raw Material | E32: Usage | G32: Unit | H32: Specific Usage | J32: Unit
A33: Mains Water | E33: =+'Operational Data'!G42/1000 -> 5014 | G33: m3 | H33: =IF(E33>0,E33/'Operational Data'!$G$21,"-") -> 0.02651479096 | J33: m3/te
A34: Total Water | E34: =+'Operational Data'!G43+'Operational Data'!G42/1000 -> 5014 | G34: m3 | H34: =IF(E34>0,E34/'Operational Data'!$G$21,"-") -> 0.02651479096 | J34: m3/te
A35: Urea / Ammonia | E35: =+'Operational Data'!G44 -> 473000 | G35: kg | H35: =IF(E35>0,E35/'Operational Data'!$G$21,"-") -> 2.501295597 | J35: kg/te
A36: Activated Carbon | E36: =+'Operational Data'!G46 -> 261000 | G36: kg | H36: =IF(E36>0,E36/'Operational Data'!$G$21,"-") -> 1.380207507 | J36: kg/te
A37: Lime / hydrated lime / Sodium Bicarb. | E37: =+'Operational Data'!G47 -> 1381000 | G37: kg | H37: =IF(E37>0,E37/'Operational Data'!$G$21,"-") -> 7.302937039 | J37: kg/te
A39: Operator’s comments :
A43: =+A31 -> 2024 | B43: Annual Reporting of other performance indicators
A44: Parameter | C44: Results by Line
C45: A1 | D45: A2 | E45: A3 | F45: A4 | G45: A5 | I45: Turbine 1 | J45: Turbine 2
A46: Operating hours for the year, hours | C46: 7930 | D46: 7881
A47: Number of periods of abnormal operation, qty.
A48: Cumulative hours of abnormal operation for this year, hours
A50: Operator’s comments :
A54: Signed: | G54: Date: | H54: 2025-01-31

Sheet Energy Form 1
A1: =+'Cover Page'!C39 -> 2024 | B1: Annual Reporting of Energy Usage/Export
A3: =+'Cover Page'!B31 -> Permit EPR/SP3034SN | F3: Operator: | G3: =+'Cover Page'!B37 -> WasteNotts (Reclamation) Limited
A5: Facility: | B5: =+'Cover Page'!B33:I33 -> Eastcroft EfW Site | F5: Form: | G5: Energy 1
A7: Reporting Period from: | D7: =+'Perf. Form 1'!D6:E6 -> 2024-01-01 | F7: to: | G7: =+'Perf. Form 1'!G6:H6 -> 2024-12-31
A9: Energy Source | D9: Energy Usage | F9: Unit | G9: Specific Usage (KWh/tonne incinerated
A10: Electricity Produced | D10: =+'Operational Data'!G24 -> 0 | F10: MWh | G10: =+'Operational Data'!H24 -> -
A11: Electricity Imported | D11: =+'Operational Data'!G27 -> 9936 | F11: MWh | G11: =+'Operational Data'!H27 -> 52.54307199
A12: Electricity Exported | D12: =+'Operational Data'!G25 -> 0 | F12: MWh | G12: =+'Operational Data'!H25 -> -
A13: Gas Oil | D13: 119.3 | F13: tonnes
A14: Steam/hot water exported | D14: =+'Operational Data'!G30 -> 380152 | F14: GWh | G14: =+'Operational Data'!H30 -> 2010.301319
A18: Operator’s comments :
A29: Signed: | G29: Date: | H29: 2025-01-31

Sheet Permit Compliance
A1: =+'Cover Page'!$B$29 -> Annual Performance Report 2024 | E1: =+'Cover Page'!$B$33 -> Eastcroft EfW Site
A3: Summary of Permit Compliance
A5: Compliance with permit limits for continuously monitored pollutants
A7: The plant met its emission limits as shown in the table below:
A8: Substance | C8: Percentage time compliant during operationNote 1 | L8: Notes:
C9: Half-hourly limit | F9: Daily limit | L9: Note 1: Please report to 2 decimal places, i.e. xx.xx% Note 2: Please enter into this table any permit non-compliances that the EA has given a CCS score for. Please also enter any other non-compliances which you have notified to the EA (e.g. ELV exceedances) but which have not yet been assessed by the EA. There is no need to enter any notifications which were subsequently assessed by the EA not to be permit breaches. Note 3: Please enter information here (rather than just referencing the notifications that were sent to the EA) including where relevant the incineration line reference, pollutant and value of the measured result for any ELV exceedances.
A10: Particulates | C10: 1 | F10: 1
A11: Oxides of nitrogen | C11: 1 | F11: 1
A12: Sulphur dioxide | C12: 0.9999 | F12: 1
A13: Carbon monoxide | C13: 100.00% 95% of 10-min averages | F13: 1
A14: Total organic carbon | C14: 0.9991 | F14: 1
A15: Hydrogen chloride | C15: 0.9998 | F15: 0.9954
A16: Hydrogen fluoride | C16: 1 | F16: 1
C17: 0.9998 | F17: 0.9993
A19: Summary of non-compliances under the permit Note 2
A20: Date | B20: Summary of non-compliance Note 3 | D20: Reason | G20: Measures taken to prevent reoccurrence | H20: CCS score if applicable*
H21: Impact | I21: Root cause
A22: 2024-01-14 | B22: 1/2 Hourly TOC of 35.3 mg/Nm3 against an ELV of 20 mg/Nm3 | D22: Gas cylinder explosion | G22: Training, Increased inspections, work with LAs and public organisations | H22: 0.1
A23: 2024-01-18 | B23: 1/2 Hourly TOC of 28.0 mg/Nm3 against an ELV of 20 mg/Nm3 | D23: Gas cylinder explosion | G23: Training, Increased inspections, work with LAs and public organisations
A24: 2024-01-27 | B24: 1/2 Hourly TOC of 33.9 mg/Nm3 against an ELV of 20 mg/Nm3 | D24: Gas cylinder explosion | G24: Training, Increased inspections, work with LAs and public organisations
A25: 2024-01-30 | B25: 1/2 Hourly TOC of 21.4 mg/Nm3 against an ELV of 20 mg/Nm3 | D25: Gas cylinder explosion | G25: Training, Increased inspections, work with LAs and public organisations
A26: 2024-01-31 | B26: 1/2 Hourly TOC of 25.9 mg/Nm3 against an ELV of 20 mg/Nm3 | D26: Gas cylinder explosion | G26: Training, Increased inspections, work with LAs and public organisations
A27: 2024-01-31 | B27: 1/2 Hourly TOC of 24.3 mg/Nm3 against an ELV of 20 mg/Nm3 | D27: Gas cylinder explosion | G27: Training, Increased inspections, work with LAs and public organisations
A28: 2024-01-31 | B28: 1/2 Hourly TOC of 27.2 mg/Nm3 against an ELV of 20 mg/Nm3 | D28: Gas cylinder explosion | G28: Training, Increased inspections, work with LAs and public organisations
A29: 2024-02-05 | B29: 1/2 Hourly TOC of 25.3 mg/Nm3 against an ELV of 20 mg/Nm3 | D29: Gas cylinder explosion | G29: Training, Increased inspections, work with LAs and public organisations
A30: 2024-02-08 | B30: 1/2 Hourly TOC of 22.8 mg/Nm3 against an ELV of 20 mg/Nm3 | D30: Gas cylinder explosion | G30: Training, Increased inspections, work with LAs and public organisations
A31: 2024-02-13 | B31: 1/2 Hourly TOC of 38.3 mg/Nm3 against an ELV of 20 mg/Nm3 | D31: Gas cylinder explosion | G31: Training, Increased inspections, work with LAs and public organisations
A32: 2024-02-17 | B32: 1/2 Hourly TOC of 30.1 mg/Nm3 against an ELV of 20 mg/Nm3 | D32: Gas cylinder explosion | G32: Training, Increased inspections, work with LAs and public organisations
A33: 2024-03-10 | B33: 1/2 Hourly TOC of 35.8 mg/Nm3 against an ELV of 20 mg/Nm3 | D33: Gas cylinder explosion | G33: Training, Increased inspections, work with LAs and public organisations
A34: 2024-03-10 | B34: 1/2 Hourly TOC of 23.5 mg/Nm3 against an ELV of 20 mg/Nm3 | D34: Gas cylinder explosion | G34: Training, Increased inspections, work with LAs and public organisations
A35: 2020-03-25 | B35: 1/2 Hourly HCl of 268.7 mg/Nm3 against an ELV of 60 mg/Nm3 | D35: Contaminated waste | G35: Training, Increased inspections, work with LAs and public organisations | H35: 0.1
A36: 2024-03-25 | B36: 1/2 Hourly SO2 of 280.2 mg/Nm3 against an ELV of 200 mg/Nm3 | D36: Contaminated waste | G36: Training, increased inspections, work with waste suppliers to identify problem streams | H36: 0.1
A37: 2024-03-25 | B37: Daily HCl of 9.77 mg/Nm3 against an ELV of 8 mg/Nm3 | D37: Contaminated waste | G37: Training, increased inspections, work with waste suppliers to identify problem streams | H37: 0.1
A38: 2024-03-27 | B38: 1/2 Hourly HCl of 112.8 mg/Nm3 against an ELV of 60 mg/Nm3 | D38: Contaminated waste | G38: Training, increased inspections, work with waste suppliers to identify problem streams
A39: 2024-03-27 | B39: 1/2 Hourly SO2 of 226.1 mg/Nm3 against an ELV of 200 mg/Nm3 | D39: Contaminated waste | G39: Training, increased inspections, work with waste suppliers to identify problem streams
A40: 2024-04-01 | B40: 1/2 Hourly HCl of 188.9 mg/Nm3 against an ELV of 60 mg/Nm3 | D40: Contaminated waste | G40: Training, increased inspections, work with waste suppliers to identify problem streams | H40: 0.1
A41: 2024-04-12 | B41: 1/2 Hourly TOC of 34.6 mg/Nm3 against an ELV of 20 mg/Nm3 | D41: Gas cylinder explosion | G41: Training, Increased inspections, work with LAs and public organisations | H41: 0.1
A42: 2024-04-14 | B42: 1/2 Hourly TOC of 32.0 mg/Nm3 against an ELV of 20 mg/Nm3 | D42: Gas cylinder explosion | G42: Training, Increased inspections, work with LAs and public organisations
A43: 2024-04-15 | B43: 1/2 Hourly TOC of 31.0 mg/Nm3 against an ELV of 20 mg/Nm3 | D43: Gas cylinder explosion | G43: Training, Increased inspections, work with LAs and public organisations
A44: 2024-05-22 | B44: 1/2 Hourly TOC of 27.8 mg/Nm3 against an ELV of 20 mg/Nm3 | D44: Gas cylinder explosion | G44: Permit variation submission, training, increased inspections, work with Las, public organisations and other waste companies
A45: 2024-06-11 | B45: 1/2 Hourly HCl of 112.4 mg/Nm3 against an ELV of 60 mg/Nm3 | D45: Contaminated waste | G45: Training, increased inspections, work with waste suppliers to identify problem streams
A46: 2024-08-05 | B46: 1/2 Hourly TOC of 26.3 mg/Nm3 against an ELV of 20 mg/Nm3 | D46: Gas cylinder explosion | G46: Permit variation submission, training, increased inspections, work with Las, public organisations and other waste companies
A47: 2024-08-20 | B47: 1/2 Hourly SO2 of 315 mg/Nm3 against an ELV of 200 mg/Nm3 | D47: Contaminated waste | G47: Training, increased inspections, work with waste suppliers to identify problem streams | H47: 0.1
A48: 2024-08-20 | B48: 1/2 Hourly HCl of 211.2 mg/Nm3 against an ELV of 60 mg/Nm3 | D48: Contaminated waste | G48: Training, increased inspections, work with waste suppliers to identify problem streams | H48: 0.1
A49: 2024-08-20 | B49: 1/2 Hourly HCl of 66.1 mg/Nm3 against an ELV of 60 mg/Nm3 | D49: Contaminated waste | G49: Training, increased inspections, work with waste suppliers to identify problem streams
A50: 2024-08-20 | B50: 1/2 Hourly HCl of 160.9 mg/Nm3 against an ELV of 60 mg/Nm3 | D50: Contaminated waste | G50: Training, increased inspections, work with waste suppliers to identify problem streams
A51: 2024-08-20 | B51: Daily HCl of 8.86 mg/Nm3 against an ELV of 8 mg/Nm3 | D51: Contaminated waste | G51: Training, increased inspections, work with waste suppliers to identify problem streams | H51: 0.1
A52: 2024-08-20 | B52: Daily HCl of 9.4 mg/Nm3 against an ELV of 8 mg/Nm3 | D52: Contaminated waste | G52: Training, increased inspections, work with waste suppliers to identify problem streams
A53: 2024-08-29 | B53: 1/2 Hourly TOC of 22.2 mg/Nm3 against an ELV of 20 mg/Nm3 | D53: Gas cylinder explosion | G53: Permit variation submission, training, increased inspections, work with Las, public organisations and other waste companies | H53: 0.1
A54: 2024-09-01 | B54: 1/2 Hourly TOC of 29.5 mg/Nm3 against an ELV of 20 mg/Nm3 | D54: Gas cylinder explosion | G54: Permit variation submission, training, increased inspections, work with Las, public organisations and other waste companies
A55: 2024-09-09 | B55: 1/2 Hourly TOC of 26.8 mg/Nm3 against an ELV of 20 mg/Nm3 | D55: Gas cylinder explosion | G55: Permit variation submission, training, increased inspections, work with Las, public organisations and other waste companies
A56: 2024-09-11 | B56: 1/2 Hourly TOC of 29.5 mg/Nm3 against an ELV of 20 mg/Nm3 | D56: Gas cylinder explosion | G56: Permit variation submission, training, increased inspections, work with Las, public organisations and other waste companies
A57: 2024-09-28 | B57: 1/2 Hourly TOC of 20.4 mg/Nm3 against an ELV of 20 mg/Nm3 | D57: Gas cylinder explosion | G57: Permit variation submission, training, increased inspections, work with Las, public organisations and other waste companies
A58: 2024-10-10 | B58: 1/2 Hourly TOC of 24.0 mg/Nm3 against an ELV of 20 mg/Nm3 | D58: Gas cylinder explosion | G58: Permit variation submission, training, increased inspections, work with Las, public organisations and other waste companies
A59: 2024-10-31 | B59: 1/2 Hourly TOC of 20.7 mg/Nm3 against an ELV of 20 mg/Nm3 | D59: Gas cylinder explosion | G59: Permit variation submission, training, increased inspections, work with Las, public organisations and other waste companies
A60: 2024-11-02 | B60: 1/2 Hourly TOC of 20.7 mg/Nm3 against an ELV of 20 mg/Nm3 | D60: Gas cylinder explosion | G60: Permit variation submission, training, increased inspections, work with Las, public organisations and other waste companies
A61: 2024-11-06 | B61: 1/2 Hourly TOC of 34.2 mg/Nm3 against an ELV of 20 mg/Nm3 | D61: Gas cylinder explosion | G61: Permit variation submission, training, increased inspections, work with Las, public organisations and other waste companies
A62: 2024-11-17 | B62: 1/2 Hourly TOC of 21.8 mg/Nm3 against an ELV of 20 mg/Nm3 | D62: Gas cylinder explosion | G62: Permit variation submission, training, increased inspections, work with Las, public organisations and other waste companies
A63: 2024-12-11 | B63: 1/2 Hourly TOC of 29.3 mg/Nm3 against an ELV of 20 mg/Nm3 | D63: Gas cylinder explosion | G63: Permit variation submission, training, increased inspections, work with Las, public organisations and other waste companies
A64: *If the Environment Agency (EA) has given a Compliance Classification Scheme (CCS) score due to a permit non-compliance it should be entered here (CCS4 = No impact; CCS3 = Minor impact; CCS2 = Significant impact; CCS1 = Major impact). If the EA has not yet assessed a non-compliance which you have notified to them, these columns should be left blank. Enter N/A if no score was given for the root cause.
A66: Summary of any complaints received and actions to taken to resolve them.
A67: Date | B67: Summary of complaint [including Line/Reference] | E67: Reason (including whether substantiated by the operator or the EA) | H67: Measures taken to prevent reoccurrence

Sheet Improvements
A1: =+'Cover Page'!$B$29 -> Annual Performance Report 2024 | E1: =+'Cover Page'!$B$33 -> Eastcroft EfW Site
A3: Summary of Plant Improvements
A5: Summary of any efficiency improvements that have been completed within the year.
A6: LED lighting replacement ongoing. Blast cooler inverters installed, Filter bags changed, compressor optimiser upgraded.
A16: Summary of any permit improvement conditions that have been completed within the year and the resulting environmental benefits.
A27: Summary of any changes to the plant or operating techniques which required a variation to the permit and a summary of the resulting environmental impact.
A38: Summary of any other improvements made to the plant or planned to be made and a summary of the resulting environmental benefits.
A39: Second set of ports for SNCR nozzels added to allow greater control of NOx during OTNOC.

Sheet Public Liasion
A1: =+'Cover Page'!$B$29 -> Annual Performance Report 2024 | E1: =+'Cover Page'!$B$33 -> Eastcroft EfW Site
A3: Details of Public & Stakeholder Liaison
A5: Summary of events held during the reporting year.
A6: Date | C6: Description
A7: 2025-01-17 | C7: Biannial Community Liaison Group Meeting
A9: 2025-09-04 | C9: Biannial Community Liaison Group Meeting
A16: List of events planned for next year
A17: Date | C17: Description
A18: 2025-01-01 | C18: Biannial Community Liaison Group Meeting
A20: 2025-09-01 | C20: Biannial Community Liaison Group Meeting
A29: If you wish to be involved in the public liasion programme, please contact info.eastcroft@fccenvironment.co.uk 0115 9869505 or visit https://eastcroft.fccenvironment.co.uk/contact-us/

Sheet CO2 N2O
A1: =+'Cover Page'!$B$29 -> Annual Performance Report 2024 | C1: =+'Cover Page'!$B$33 -> Eastcroft EfW Site
A3: Carbon dioxide emissions and biogenic content of waste inputs | F3: Notes:
A5: Carbon dioxide emissions (all types of plant)
B6: Annual mass of carbon dioxide released | C6: tonnes | D6: 193801.2
B7: Annual mass of carbon dioxide released per tonne of waste burned | C7: t CO2 / t waste | D7: 1.06
B8: Annual mass of carbon dioxide released per MWh of energy exported | C8: t CO2 / MWh export | D8: 0.51
B9: Description of how annual carbon dioxide mass emission has been calculated. See Note 1 | C9: Calibrated CEMs and flow meter | F9: Note 1: All permits require operators to continuously monitor CO2 to EN14181 and flow to BS EN 16911-2 (unless otherwise agreed in writing). Operators must therefore use the results from these instruments to calculate their annual CO2 emissions. Where an operator does not have a flow meter calibrated to BS EN 16911-2, the averaged flow measurement from that year's periodic monitoring can be used instead. If the plant does not have calibrated CO2 CEMS, a suitably justified emissions factor can be used.
A10: Nitrous oxide emissions (only plants which use ammonia or urea to abate NOx emissions)
B11: Annual mass emissions of nitrous oxide | C11: tonnes N2O | D11: 1.02
B12: Description of how annual nitrous oxide mass emission has been calculated See Note 2 | C12: Calibrated CEMs and flow meter | F12: Note 2: All permits require operators to continuously monitor N2O to EN14181 and flow to BS EN 16911-2, unless otherwise agreed in writing. Operators must therefore use the results from these instruments to calculate their annual N2O emissions. Where an operator does not have a flow meter calibrated to BS EN 16911-2, the averaged flow measurement from periodic monitoring can be used instead. If the plant does not have calibrated N2O CEMS, data from periodic monitoring or a suitably justified emissions factor can be used instead.
A13: Total annual carbon dioxide + nitrous oxide emissions. See Note 3. | C13: tonnes CO2e | D13: 194071 | F13: Note 3: Total annual carbon dioxide and nitrous oxide emissions reported as carbon dioxide equivalent where 1 tonne nitrous oxide is equivalent to 265 tonnes carbon dioxide.
A14: Biogenic CO2 emissions (See Note 4) | F14: Note 4: Only plants combusting residual municipal waste, refuse derived fuel or solid recovered fuel need complete this section.
B15: Percentage of total carbon dioxide emissions arising from biogenic waste | C15: % | D15: 0.518
B16: No. of measurements undertaken | C16: Number | D16: 0
B17: Description of how percentage biogenic carbon dioxide emissions have been measured or calculated. See Note 5 | C17: Figure taken from 2017 WRAP data | F17: Note 5: The results from C14 sampling should be used if this is carried out at the plant (either via an installed sampler or from spot samples). Otherwise, as an approximation (and in lieu of any more accurate metrics which may be developed in future), the measured or estimated biogenic fraction by net calorific value (see Note 6) can be assumed to be the same as the biogenic CO2 fraction of the total CO2 emissions from the plant.
A18: Biogenic fraction of waste feedstock (See Note 4)
B19: Yearly average biogenic percentage of the waste by net calorific value (NCV) | C19: % | D19: 0.518
B20: Description of how biogenic percentage (by NCV) has been calculated or estimated. See Note 6 | C20: Figure taken from 2017 WRAP data | F20: Note 6: If C14 sampling is carried out at the plant, the methodology set out in the embedded document entitled "Renewable Energy Association Energy Content of Fuels - Description of Method" embedded below can be used to calculate the biogenic percentage by net calorific value. Otherwise, data from waste sampling or BIOMA software can be used; or if none of these are available, an estimated figure with justification or a figure assumed on the basis of up-to-date industry data can be used.
B21: Yearly average biogenic percentage of the waste by mass | C21: % | D21: 0.7144
B22: If waste sampling undertaken, no. of samples used to ascertain average biogenic percentages above | C22: Number | D22: 25
B23: Description of how biogenic percentage (by mass) has been calculated or estimated. See Note 7 | C23: 2023 Audit of waste inputs by Alfred H Knight | F23: Note 7: Where available, data from waste sampling should be used; otherwise, an estimated figure with justification can be used, or a figure assumed on the basis of up-to-date industry data.
B25: Comments:
B26: Procurement of C14 autosamplers is currently under way for future reporting once installation has been completed.

Sheet Residue Quality
A1: =+'Cover Page'!$B$29 -> Annual Performance Report 2024 | E1: =+'Cover Page'!$B$33 -> Eastcroft EfW Site
A3: Residue Quality Monitoring Requirements
A5: Summary of monitoring undertaken and compliance
A6: Monitoring of residues for permit compliance was undertaken with full compliance to the residue limit recorded. No specific events were recorded during 2023.
A13: Commentary on any specific events
A14: Date & Event | C14: Description
A27: Residue Quality Monitoring Results
A28: Parameter (unit) | C28: Limit* | D28: Normal Operation
D29: Bottom ash | F29: APC Residues
A30: Loss on Ignition (average %) | C30: <5%
A31: Total Organic Carbon (average %) | C31: <3% | D31: 0.85
A32: No. of Assessments Undertaken | C32: --- | D32: 24 | F32: 4
A33: No. of Hazardous Results | C33: --- | D33: 0
A34: * The permit will specify a limit of either 5% loss on ignition or 3% total organic carbon. If both are measured anyway, please enter the results here, even where the limit does not apply.
A36: Comments :

Sheet Water
A1: =+'Cover Page'!$B$29 -> Annual Performance Report 2024 | E1: =+'Cover Page'!$B$33 -> Eastcroft EfW Site
A3: Emissions to Water
A5: Summary of monitoring undertaken and compliance
A6: No sampling required
A13: Commentary on any specific events
A14: Date & Event | C14: Description
A22: Emissions to Water / Sewer
A23: Parameter | D23: Monitoring Frequency | F23: Limit | G23: Target | H23: Max. | I23: Average

Sheet Air (periodic)
A1: =+'Cover Page'!$B$29 -> Annual Performance Report 2024 | E1: =+'Cover Page'!$B$33 -> Eastcroft EfW Site
A3: Emissions to Air (periodically monitored)
A5: Summary of monitoring undertaken, standards used and compliance | K5: Notes:
K6: Template may require adjustment for any bespoke monitoring requirements of permit - please also check that all default ELV values, reference periods and the stated oxygen reference value match those for your plant, and edit if necessary!
A9: Results of emissions to air that are periodically monitored - oxygen reference 11%
A10: Substance | C10: Ref. Period | D10: Emission Limit Value | F10: Average | K10: User to add additional tables as necessary, depending on whether quarterly or bi-annual reporting is required for the compliance year
F11: A1 | G11: A2 | H11: A3 | I11: A4 | J11: A5
A12: Hydrogen fluoride | C12: 1 hr | D12: 1 mg/m3 | F12: 0.16 | G12: 0.31
A13: Cd and Tl and their compounds | C13: 0.5-8hrs | D13: 0.02 mg/m3 | F13: 0.002 | G13: 0.00135
A14: Hg and its compounds | C14: 0.5-8hrs | D14: 0.02 mg/m3 | F14: 0.001 | G14: 0.00085
A15: Sb, As, Pb, Cr, Co, Cu, Mn, Ni, V and their compounds | C15: 0.5-8hrs | D15: 0.3 mg/m3 | F15: 0.03 | G15: 0.0865
A16: Dioxins & Furans (I-TEQ) | C16: 6-8hrs | D16: 0.06 ng/m3 | F16: 0.003 | G16: 0.0049
A17: PCBs (WHO-TEQ Humans / Mammals) | C17: 6-8hrs | D17: None set ng/m3 | F17: 0.0003 | G17: 0.001
A18: PCBs (WHO-TEQ Fish) | C18: 6-8hrs | D18: None set ng/m3 | F18: 2e-05 | G18: 6.5e-05
A19: PCBs (WHO-TEQ Birds) | C19: 6-8hrs | D19: None set ng/m3 | F19: 0.001 | G19: 0.00235
A20: Dioxins & Furans (WHO-TEQ Humans / Mammals) | C20: 6-8hrs | D20: None set ng/m3 | F20: 0.003 | G20: 0.0044
A21: Dioxins & Furans (WHO-TEQ Fish) | C21: 6-8hrs | D21: None set ng/m3 | F21: 0.004 | G21: 0.00455
A22: Dioxins & Furans (WHO-TEQ Birds) | C22: 6-8hrs | D22: None set ng/m3 | F22: 0.006 | G22: 0.0148
A23: Anthanthrene | C23: 6-8hrs | D23: None set µg/m3 | F23: < 0.0018 | G23: < 0.0017
A24: Benzo(a)anthracene | C24: 6-8hrs | D24: None set µg/m3 | F24: 0.01 | G24: 0.00195
A25: Benzo(a)pyrene | C25: 6-8hrs | D25: None set µg/m3 | F25: 0.01 | G25: 0.005
A26: Benzo(b)fluoranthene | C26: 6-8hrs | D26: None set µg/m3 | F26: < 0.0018 | G26: < 0.0017
A27: Benzo(b)naptho(2,1-d) thiophene | C27: 6-8hrs | D27: None set µg/m3 | F27: < 0.0018 | G27: 0.00125
A28: Benzo(c)phenanthrene | C28: 6-8hrs | D28: None set µg/m3 | F28: 0 | G28: < 0.0017
A29: Benzo(ghi)perylene | C29: 6-8hrs | D29: None set µg/m3 | F29: < 0.0018 | G29: 0.005
A30: Benzo(k)fluoranthene | C30: 6-8hrs | D30: None set µg/m3 | F30: 0 | G30: < 0.0017
A31: Cholanthrene | C31: 6-8hrs | D31: None set µg/m3 | F31: < 0.0018 | G31: < 0.0017
A32: Chrysene | C32: 6-8hrs | D32: None set µg/m3 | F32: 0.01 | G32: 0.01
A33: Cyclopenta(cd)pyrene | C33: 6-8hrs | D33: None set µg/m3 | F33: < 0.0018 | G33: < 0.0017
A34: Dibenzo(ai)pyrene | C34: 6-8hrs | D34: None set µg/m3 | F34: < 0.0018 | G34: < 0.0017
A35: Dibenzo(ah)anthracene | C35: 6-8hrs | D35: None set µg/m3 | F35: < 0.0018 | G35: < 0.0017
A36: Fluoranthene | C36: 6-8hrs | D36: None set µg/m3 | F36: 0.04 | G36: 0.06
A37: Indeno(123-cd) pyrene | C37: 6-8hrs | D37: None set µg/m3 | F37: < 0.0018 | G37: 0.0014
A38: Naphthalene | C38: 6-8hrs | D38: None set µg/m3 | F38: 0.5 | G38: 0.25
A39: Comments :

Sheet Air (CEMS)
A1: =+'Cover Page'!$B$29 -> Annual Performance Report 2024 | I1: =+'Cover Page'!$B$33 -> Eastcroft EfW Site
A3: Emissions to Air (continuously monitored)
N4: Notes:
A5: Summary of monitoring undertaken, standards used and compliance | N5: Template may require adjustment for any bespoke monitoring requirements of permit
A6: Continuous monitoring to EN14181. 42 notified ELV exceedances. | N6: Please check that all default ELV values match those for your plant and edit if necessary!
N7: Report to 1 decimal place
A11: Results of emissions to air that are continuously monitored (maximum and average values for each line) - oxygen reference 11%
A12: Substance | B12: Reference Period | C12: Emission Limit Value | D12: A1 | F12: A2 | H12: A3 | J12: A4 | L12: A5
D13: Max. | E13: Avg. | F13: Max. | G13: Avg. | H13: Max. | I13: Avg. | J13: Max. | K13: Avg. | L13: Max. | M13: Avg.
A14: Oxides of nitrogen | B14: Daily mean | C14: 180 mg/m3 | D14: 169.6 | E14: 138.9166667 | F14: 172.6 | G14: 138.075
B15: ½ hourly mean | C15: 400 mg/m3 | D15: 241.4 | E15: 139.0916667 | F15: 306.8 | G15: 138.2
A16: Particulates | B16: Daily mean | C16: 5 mg/m3 | D16: 3 | E16: 0.3666666667 | F16: 1.7 | G16: 0.4
B17: ½ hourly mean | C17: 30 mg/m3 | D17: 9.1 | E17: 0.4166666667 | F17: 10.3 | G17: 0.4
A18: Total Organic Carbon | B18: Daily mean | C18: 10 mg/m3 | D18: 1.8 | E18: 0.575 | F18: 2.7 | G18: 0.5916666667
B19: ½ hourly mean | C19: 20 mg/m3 | D19: 34.6 | E19: 0.6166666667 | F19: 38.3 | G19: 0.6333333333
A20: Hydrogen chloride | B20: Daily mean | C20: 8 mg/m3 | D20: 9.8 | E20: 3.466666667 | F20: 9 | G20: 3.608333333
B21: ½ hourly mean | C21: 60 mg/m3 | D21: 268.7 | E21: 3.5 | F21: 211.2 | G21: 3.641666667
A22: Sulphur dioxide | B22: Daily mean | C22: 40 mg/m3 | D22: 25.2 | E22: 16.99166667 | F22: 39.2 | G22: 20.525
B23: ½ hourly mean | C23: 200 mg/m3 | D23: 280.2 | E23: 17.05833333 | F23: 315 | G23: 20.55
A24: Carbon monoxide | B24: Daily mean | C24: 50 mg/m3 | D24: 16.2 | E24: 6.816666667 | F24: 29.8 | G24: 6.65
B25: 95%ile 10-min avg * | C25: 150 mg/m3 * | D25: ='[1]CO 95% 10 min'!O19 -> 656.5 | E25: ='[1]CO 95% 10 min'!M19 -> 32.4 | F25: ='[1]CO 95% 10 min'!O34 -> 1139.3 | G25: ='[1]CO 95% 10 min'!M34 -> 27.425
A26: Ammonia | B26: Daily mean | C26: 15 mg/m3 | D26: 4.7 | E26: 1.166666667 | F26: 12.2 | G26: 1.775
A27: * = delete as appropriate, depending on whether your plant has half-hourly or 10-min CO ELVs
A28: Comments :

Sheet HCl
A1: =+'Cover Page'!$B$29 -> Annual Performance Report 2024 | E1: =+'Cover Page'!$B$33 -> Eastcroft EfW Site
A3: Monitoring of Hydrogen Chloride emissions | D3: Whole Installation | G3: See Notes in Cell Q3 | J3: =+A3 -> Monitoring of Hydrogen Chloride emissions | N3: Per Combustion Line | Q3: Notes:
Q4: User to add logic to complete Whole installation, Table A5:G18. From the data in Per Combustion Line, Table J6:O79, subject to No. of lines installed
A5: =+'Cover Page'!C39 -> 2024 | B5: 1/2 Hourly Reference Periods | E5: Daily Reference Periods
A6: mg/Nm3 | B6: 1/2 hourly HCl ELV | C6: Monthly mean of half-hourly averages | D6: Highest half- hourly average | E6: Daily HCl ELV | F6: Monthly mean of daily averages | G6: Highest daily average | J6: =+A5 -> 2024 | K6: mg/Nm3 | L6: Monthly mean of half-hourly averages | M6: Highest half- hourly average | N6: Monthly mean of daily averages | O6: Highest daily average
A7: Jan | B7: 60 | C7: 3.3 | D7: 8.9 | E7: 8 | F7: 3.3 | G7: 4.6 | J7: A1 | K7: Jan | L7: 2.8 | M7: 8.9 | N7: 2.8 | O7: 3.6
A8: Feb | B8: 60 | C8: 3.2 | D8: 44.4 | E8: 8 | F8: 3.15 | G8: 5.5 | K8: Feb | L8: 2.7 | M8: 9.4 | N8: 2.6 | O8: 3.9
A9: Mar | B9: 60 | C9: 3.4 | D9: 268.7 | E9: 8 | F9: 3.4 | G9: 9.8 | K9: Mar | L9: 3.1 | M9: 268.7 | N9: 3.1 | O9: 9.8 | Q9: Whole Installation table A5:G18:
A10: Apr | B10: 60 | C10: 4.2 | D10: 188.9 | E10: 8 | F10: 4.1 | G10: 6.8 | K10: Apr | L10: 4.1 | M10: 188.9 | N10: 4 | O10: 6.8 | Q10: Mean: for 1/2 hourly and daily periods calculate mean of values across all operational combustion lines for the month
A11: May | B11: 60 | C11: 4 | D11: 15.4 | E11: 8 | F11: 3.95 | G11: 5 | K11: May | L11: 4 | M11: 15.4 | N11: 3.9 | O11: 5
A12: Jun | B12: 60 | C12: 3.85 | D12: 112.4 | E12: 8 | F12: 3.75 | G12: 6.4 | K12: Jun | L12: 3.7 | M12: 112.4 | N12: 3.6 | O12: 6.4
A13: Jul | B13: 60 | C13: 4.15 | D13: 40.8 | E13: 8 | F13: 4.1 | G13: 6.2 | K13: Jul | L13: 4 | M13: 40.8 | N13: 4 | O13: 6 | Q13: Maximum: for 1/2 hourly and daily periods use the highest value across all operational combustion lines for the month
A14: Aug | B14: 60 | C14: 4.5 | D14: 211.2 | E14: 8 | F14: 4.5 | G14: 9.4 | K14: Aug | L14: 4.4 | M14: 170 | N14: 4.4 | O14: 9.4
A15: Sep | B15: 60 | C15: 3.45 | D15: 49.6 | E15: 8 | F15: 3.45 | G15: 4.8 | K15: Sep | L15: 4 | M15: 49.6 | N15: 4 | O15: 4.8
A16: Oct | B16: 60 | C16: 2.85 | D16: 28.7 | E16: 8 | F16: 2.85 | G16: 4.1 | K16: Oct | L16: 3.1 | M16: 28.7 | N16: 3.1 | O16: 4.1
A17: Nov | B17: 60 | C17: 3.25 | D17: 14.7 | E17: 8 | F17: 3.2 | G17: 4.1 | K17: Nov | L17: 3.4 | M17: 14.7 | N17: 3.4 | O17: 4.1
A18: Dec | B18: 60 | C18: 2.7 | D18: 6.5 | E18: 8 | F18: 2.7 | G18: 4.1 | K18: Dec | L18: 2.7 | M18: 6.5 | N18: 2.7 | O18: 4.1
K19: Annual | L19: =AVERAGE(L7:L18) -> 3.5 | M19: =MAX(M7:M18) -> 268.7 | N19: =AVERAGE(N7:N18) -> 3.466666667 | O19: =MAX(O7:O18) -> 9.8
J21: =+A5 -> 2024 | K21: mg/Nm3 | L21: Monthly mean of half-hourly averages | M21: Highest half- hourly average | N21: Monthly mean of daily averages | O21: Highest daily average
J22: A2 | K22: Jan | L22: 3.8 | M22: 7.3 | N22: 3.8 | O22: 4.6
K23: Feb | L23: 3.7 | M23: 44.4 | N23: 3.7 | O23: 5.5
K24: Mar | L24: 3.7 | M24: 9.5 | N24: 3.7 | O24: 4.7
K25: Apr | L25: 4.3 | M25: 8.2 | N25: 4.2 | O25: 5.2
K26: May | L26: 4 | M26: 6.8 | N26: 4 | O26: 4.8
K27: Jun | L27: 4 | M27: 6.5 | N27: 3.9 | O27: 4.7
K28: Jul | L28: 4.3 | M28: 30.8 | N28: 4.2 | O28: 6.2
K29: Aug | L29: 4.6 | M29: 211.2 | N29: 4.6 | O29: 9
K30: Sep | L30: 2.9 | M30: 9.8 | N30: 2.9 | O30: 4.2
K31: Oct | L31: 2.6 | M31: 14.2 | N31: 2.6 | O31: 3.2
K32: Nov | L32: 3.1 | M32: 13.9 | N32: 3 | O32: 4
K33: Dec | L33: 2.7 | M33: 5.7 | N33: 2.7 | O33: 3.2
K34: Annual | L34: =AVERAGE(L22:L33) -> 3.641666667 | M34: =MAX(M22:M33) -> 211.2 | N34: =AVERAGE(N22:N33) -> 3.608333333 | O34: =MAX(O22:O33) -> 9
J36: =+A5 -> 2024 | K36: mg/Nm3 | L36: Monthly mean of half-hourly averages | M36: Highest half- hourly average | N36: Monthly mean of daily averages | O36: Highest daily average
J37: A3 | K37: Jan
K38: Feb
K39: Mar
K40: Apr
K41: May
K42: Jun
K43: Jul
K44: Aug
K45: Sep
K46: Oct
K47: Nov
A48: Comments : | K48: Dec
K49: Annual | L49: =AVERAGE(L37:L48) ->  | M49: =MAX(M37:M48) -> 0 | N49: =AVERAGE(N37:N48) ->  | O49: =MAX(O37:O48) -> 0
J51: =+A5 -> 2024 | K51: mg/Nm3 | L51: Monthly mean of half-hourly averages | M51: Highest half- hourly average | N51: Monthly mean of daily averages | O51: Highest daily average
J52: A4 | K52: Jan
K53: Feb
K54: Mar
K55: Apr
K56: May
K57: Jun
K58: Jul
K59: Aug
K60: Sep
K61: Oct
K62: Nov
K63: Dec
K64: Annual | L64: =AVERAGE(L52:L63) ->  | M64: =MAX(M52:M63) -> 0 | N64: =AVERAGE(N52:N63) ->  | O64: =MAX(O52:O63) -> 0
J66: =+A5 -> 2024 | K66: mg/Nm3 | L66: Monthly mean of half-hourly averages | M66: Highest half- hourly average | N66: Monthly mean of daily averages | O66: Highest daily average
J67: A5 | K67: Jan
K68: Feb
K69: Mar
K70: Apr
K71: May
K72: Jun
K73: Jul
K74: Aug
K75: Sep
K76: Oct
K77: Nov
K78: Dec
K79: Annual | L79: =AVERAGE(L67:L78) ->  | M79: =MAX(M67:M78) -> 0 | N79: =AVERAGE(N67:N78) ->  | O79: =MAX(O67:O78) -> 0

Sheet SO2
A1: =+'Cover Page'!$B$29 -> Annual Performance Report 2024 | E1: =+'Cover Page'!$B$33 -> Eastcroft EfW Site
A3: Monitoring of Sulphur dioxide emissions | D3: Whole Installation | G3: See Notes in Cell Q3 | J3: =+A3 -> Monitoring of Sulphur dioxide emissions | N3: Per Combustion Line | Q3: Notes:
Q4: User to add logic to complete Whole installation, Table A5:G18. From the data in Per Combustion Line, Table J6:O79, subject to No. of lines installed
A5: =+'Cover Page'!C39 -> 2024 | B5: 1/2 Hourly Reference Periods | E5: Daily Reference Periods
A6: mg/Nm3 | B6: 1/2 hourly SO2 ELV | C6: Monthly mean of half-hourly averages | D6: Highest half- hourly average | E6: Daily SO2 ELV | F6: Monthly mean of daily averages | G6: Highest daily average | J6: =+A5 -> 2024 | K6: mg/Nm3 | L6: Monthly mean of half-hourly averages | M6: Highest half- hourly average | N6: Monthly mean of daily averages | O6: Highest daily average
A7: Jan | B7: 200 | C7: 22.4 | D7: 147.2 | E7: 40 | F7: 22.45 | G7: 34.1 | J7: A1 | K7: Jan | L7: 19.6 | M7: 147.2 | N7: 19.6 | O7: 26.6
A8: Feb | B8: 200 | C8: 27.1 | D8: 144 | E8: 40 | F8: 27.05 | G8: 37.5 | K8: Feb | L8: 24.2 | M8: 86.9 | N8: 24.2 | O8: 34
A9: Mar | B9: 200 | C9: 26.65 | D9: 280.2 | E9: 40 | F9: 26.65 | G9: 39.2 | K9: Mar | L9: 25.2 | M9: 280.2 | N9: 25.2 | O9: 36.9 | Q9: Whole Installation table A5:G18:
A10: Apr | B10: 200 | C10: 26.1 | D10: 78.2 | E10: 40 | F10: 26.15 | G10: 33.9 | K10: Apr | L10: 23.9 | M10: 78.2 | N10: 24 | O10: 32.6 | Q10: Mean: for 1/2 hourly and daily periods calculate mean of values across all operational combustion lines for the month
A11: May | B11: 200 | C11: 24.3 | D11: 69.4 | E11: 40 | F11: 24.35 | G11: 32.8 | K11: May | L11: 21.4 | M11: 69.4 | N11: 21.5 | O11: 26.7
A12: Jun | B12: 200 | C12: 22.8 | D12: 71.8 | E12: 40 | F12: 22.75 | G12: 28.1 | K12: Jun | L12: 20.9 | M12: 71.8 | N12: 20.8 | O12: 24
A13: Jul | B13: 200 | C13: 18.35 | D13: 81.5 | E13: 40 | F13: 18 | G13: 24.3 | K13: Jul | L13: 17.1 | M13: 81.5 | N13: 16.5 | O13: 24.3 | Q13: Maximum: for 1/2 hourly and daily periods use the highest value across all operational combustion lines for the month
A14: Aug | B14: 200 | C14: 12.9 | D14: 315 | E14: 40 | F14: 12.9 | G14: 24.9 | K14: Aug | L14: 10.7 | M14: 138.2 | N14: 10.7 | O14: 17.4
A15: Sep | B15: 200 | C15: 8.55 | D15: 58.9 | E15: 40 | F15: 8.5 | G15: 22.5 | K15: Sep | L15: 10.3 | M15: 57.9 | N15: 10.3 | O15: 16.4
A16: Oct | B16: 200 | C16: 10.2 | D16: 57.6 | E16: 40 | F16: 10.1 | G16: 18 | K16: Oct | L16: 8.9 | M16: 57.6 | N16: 8.8 | O16: 13.6
A17: Nov | B17: 200 | C17: 12.35 | D17: 63.1 | E17: 40 | F17: 12.3 | G17: 20.1 | K17: Nov | L17: 10.5 | M17: 42.3 | N17: 10.4 | O17: 14.3
A18: Dec | B18: 200 | C18: 13.95 | D18: 61.9 | E18: 40 | F18: 13.9 | G18: 21.1 | K18: Dec | L18: 12 | M18: 61.9 | N18: 11.9 | O18: 20.2
K19: Annual | L19: =AVERAGE(L7:L18) -> 17.05833333 | M19: =MAX(M7:M18) -> 280.2 | N19: =AVERAGE(N7:N18) -> 16.99166667 | O19: =MAX(O7:O18) -> 36.9
J21: =+A5 -> 2024 | K21: mg/Nm3 | L21: Monthly mean of half-hourly averages | M21: Highest half- hourly average | N21: Monthly mean of daily averages | O21: Highest daily average
J22: A2 | K22: Jan | L22: 25.2 | M22: 94.5 | N22: 25.3 | O22: 34.1
K23: Feb | L23: 30 | M23: 144 | N23: 29.9 | O23: 37.5
K24: Mar | L24: 28.1 | M24: 96 | N24: 28.1 | O24: 39.2
K25: Apr | L25: 28.3 | M25: 70.9 | N25: 28.3 | O25: 33.9
K26: May | L26: 27.2 | M26: 53 | N26: 27.2 | O26: 32.8
K27: Jun | L27: 24.7 | M27: 46.4 | N27: 24.7 | O27: 28.1
K28: Jul | L28: 19.6 | M28: 60.6 | N28: 19.5 | O28: 23.8
K29: Aug | L29: 15.1 | M29: 315 | N29: 15.1 | O29: 24.9
K30: Sep | L30: 6.8 | M30: 58.9 | N30: 6.7 | O30: 22.5
K31: Oct | L31: 11.5 | M31: 48.6 | N31: 11.4 | O31: 18
K32: Nov | L32: 14.2 | M32: 63.1 | N32: 14.2 | O32: 20.1
K33: Dec | L33: 15.9 | M33: 49.4 | N33: 15.9 | O33: 21.1
K34: Annual | L34: =AVERAGE(L22:L33) -> 20.55 | M34: =MAX(M22:M33) -> 315 | N34: =AVERAGE(N22:N33) -> 20.525 | O34: =MAX(O22:O33) -> 39.2
J36: =+A5 -> 2024 | K36: mg/Nm3 | L36: Monthly mean of half-hourly averages | M36: Highest half- hourly average | N36: Monthly mean of daily averages | O36: Highest daily average
J37: A3 | K37: Jan
K38: Feb
K39: Mar
K40: Apr
K41: May
K42: Jun
K43: Jul
K44: Aug
K45: Sep
K46: Oct
K47: Nov
A48: Comments : | K48: Dec
K49: Annual | L49: =AVERAGE(L37:L48) ->  | M49: =MAX(M37:M48) -> 0 | N49: =AVERAGE(N37:N48) ->  | O49: =MAX(O37:O48) -> 0
J51: =+A5 -> 2024 | K51: mg/Nm3 | L51: Monthly mean of half-hourly averages | M51: Highest half- hourly average | N51: Monthly mean of daily averages | O51: Highest daily average
J52: A4 | K52: Jan
K53: Feb
K54: Mar
K55: Apr
K56: May
K57: Jun
K58: Jul
K59: Aug
K60: Sep
K61: Oct
K62: Nov
K63: Dec
K64: Annual | L64: =AVERAGE(L52:L63) ->  | M64: =MAX(M52:M63) -> 0 | N64: =AVERAGE(N52:N63) ->  | O64: =MAX(O52:O63) -> 0
J66: =+A5 -> 2024 | K66: mg/Nm3 | L66: Monthly mean of half-hourly averages | M66: Highest half- hourly average | N66: Monthly mean of daily averages | O66: Highest daily average
J67: A5 | K67: Jan
K68: Feb
K69: Mar
K70: Apr
K71: May
K72: Jun
K73: Jul
K74: Aug
K75: Sep
K76: Oct
K77: Nov
K78: Dec
K79: Annual | L79: =AVERAGE(L67:L78) ->  | M79: =MAX(M67:M78) -> 0 | N79: =AVERAGE(N67:N78) ->  | O79: =MAX(O67:O78) -> 0

Sheet NOx
A1: =+'Cover Page'!$B$29 -> Annual Performance Report 2024 | E1: =+'Cover Page'!$B$33 -> Eastcroft EfW Site
A3: Monitoring of Oxides of Nitrogen emissions | D3: Whole Installation | G3: See Notes in Cell Q3 | J3: =+A3 -> Monitoring of Oxides of Nitrogen emissions | N3: Per Combustion Line | Q3: Notes:
Q4: User to add logic to complete Whole installation, Table A5:G18. From the data in Per Combustion Line, Table J6:O79, subject to No. of lines installed
A5: =+'Cover Page'!C39 -> 2024 | B5: 1/2 Hourly Reference Periods | E5: Daily Reference Periods
A6: mg/Nm3 | B6: 1/2 hourly NOx ELV | C6: Monthly mean of half-hourly averages | D6: Highest half- hourly average | E6: Daily NOx ELV | F6: Monthly mean of daily averages | G6: Highest daily average | J6: =+A5 -> 2024 | K6: mg/Nm3 | L6: Monthly mean of half-hourly averages | M6: Highest half- hourly average | N6: Monthly mean of daily averages | O6: Highest daily average
A7: Jan | B7: 400 | C7: 150.7 | D7: 242.2 | E7: 180 | F7: 150.8 | G7: 169.6 | J7: A1 | K7: Jan | L7: 152.5 | M7: 223.9 | N7: 152.5 | O7: 169.6
A8: Feb | B8: 400 | C8: 145.8 | D8: 227.4 | E8: 180 | F8: 145.85 | G8: 166.4 | K8: Feb | L8: 141.5 | M8: 226.8 | N8: 141.5 | O8: 166.4
A9: Mar | B9: 400 | C9: 144.85 | D9: 212.5 | E9: 180 | F9: 144.8 | G9: 162 | K9: Mar | L9: 142.3 | M9: 212.5 | N9: 142.2 | O9: 158.8 | Q9: Whole Installation table A5:G18:
A10: Apr | B10: 400 | C10: 153.3 | D10: 207 | E10: 180 | F10: 153.15 | G10: 163.5 | K10: Apr | L10: 153.4 | M10: 205.5 | N10: 153.1 | O10: 163.5 | Q10: Mean: for 1/2 hourly and daily periods calculate mean of values across all operational combustion lines for the month
A11: May | B11: 400 | C11: 150.6 | D11: 241.4 | E11: 180 | F11: 150.4 | G11: 163.5 | K11: May | L11: 151.1 | M11: 241.4 | N11: 150.8 | O11: 163.5
A12: Jun | B12: 400 | C12: 152.2 | D12: 238.8 | E12: 180 | F12: 152.1 | G12: 164.7 | K12: Jun | L12: 150.1 | M12: 231 | N12: 150 | O12: 164.7
A13: Jul | B13: 400 | C13: 144.25 | D13: 267.4 | E13: 180 | F13: 142.75 | G13: 172.6 | K13: Jul | L13: 143.2 | M13: 235.4 | N13: 142.3 | O13: 165.9 | Q13: Maximum: for 1/2 hourly and daily periods use the highest value across all operational combustion lines for the month
A14: Aug | B14: 400 | C14: 131.35 | D14: 306.8 | E14: 180 | F14: 131.35 | G14: 142.7 | K14: Aug | L14: 130.1 | M14: 186.5 | N14: 130.1 | O14: 140.5
A15: Sep | B15: 400 | C15: 127.45 | D15: 206.1 | E15: 180 | F15: 127.55 | G15: 160.6 | K15: Sep | L15: 142 | M15: 206.1 | N15: 142 | O15: 160.6
A16: Oct | B16: 400 | C16: 116.05 | D16: 161.3 | E16: 180 | F16: 115.95 | G16: 133.8 | K16: Oct | L16: 116.5 | M16: 161.3 | N16: 116.4 | O16: 133.8
A17: Nov | B17: 400 | C17: 118.55 | D17: 176.7 | E17: 180 | F17: 118.5 | G17: 132.9 | K17: Nov | L17: 117.1 | M17: 158.7 | N17: 117.1 | O17: 127
A18: Dec | B18: 400 | C18: 128.65 | D18: 177.1 | E18: 180 | F18: 128.75 | G18: 141.5 | K18: Dec | L18: 129.3 | M18: 177.1 | N18: 129 | O18: 139.8
K19: Annual | L19: =AVERAGE(L7:L18) -> 139.0916667 | M19: =MAX(M7:M18) -> 241.4 | N19: =AVERAGE(N7:N18) -> 138.9166667 | O19: =MAX(O7:O18) -> 169.6
J21: =+A5 -> 2024 | K21: mg/Nm3 | L21: Monthly mean of half-hourly averages | M21: Highest half- hourly average | N21: Monthly mean of daily averages | O21: Highest daily average
J22: A2 | K22: Jan | L22: 148.9 | M22: 242.2 | N22: 149.1 | O22: 163.8
K23: Feb | L23: 150.1 | M23: 227.4 | N23: 150.2 | O23: 162.8
K24: Mar | L24: 147.4 | M24: 193.7 | N24: 147.4 | O24: 162
K25: Apr | L25: 153.2 | M25: 207 | N25: 153.2 | O25: 163.1
K26: May | L26: 150.1 | M26: 221.7 | N26: 150 | O26: 162.5
K27: Jun | L27: 154.3 | M27: 238.8 | N27: 154.2 | O27: 163.4
K28: Jul | L28: 145.3 | M28: 267.4 | N28: 143.2 | O28: 172.6
K29: Aug | L29: 132.6 | M29: 306.8 | N29: 132.6 | O29: 142.7
K30: Sep | L30: 112.9 | M30: 184 | N30: 113.1 | O30: 129.2
K31: Oct | L31: 115.6 | M31: 159.5 | N31: 115.5 | O31: 129.1
K32: Nov | L32: 120 | M32: 176.7 | N32: 119.9 | O32: 132.9
K33: Dec | L33: 128 | M33: 172.6 | N33: 128.5 | O33: 141.5
K34: Annual | L34: =AVERAGE(L22:L33) -> 138.2 | M34: =MAX(M22:M33) -> 306.8 | N34: =AVERAGE(N22:N33) -> 138.075 | O34: =MAX(O22:O33) -> 172.6
J36: =+A5 -> 2024 | K36: mg/Nm3 | L36: Monthly mean of half-hourly averages | M36: Highest half- hourly average | N36: Monthly mean of daily averages | O36: Highest daily average
J37: A3 | K37: Jan
K38: Feb
K39: Mar
K40: Apr
K41: May
K42: Jun
K43: Jul
K44: Aug
K45: Sep
K46: Oct
K47: Nov
A48: Comments : | K48: Dec
K49: Annual | L49: =AVERAGE(L37:L48) ->  | M49: =MAX(M37:M48) -> 0 | N49: =AVERAGE(N37:N48) ->  | O49: =MAX(O37:O48) -> 0
J51: =+A5 -> 2024 | K51: mg/Nm3 | L51: Monthly mean of half-hourly averages | M51: Highest half- hourly average | N51: Monthly mean of daily averages | O51: Highest daily average
J52: A4 | K52: Jan
K53: Feb
K54: Mar
K55: Apr
K56: May
K57: Jun
K58: Jul
K59: Aug
K60: Sep
K61: Oct
K62: Nov
K63: Dec
K64: Annual | L64: =AVERAGE(L52:L63) ->  | M64: =MAX(M52:M63) -> 0 | N64: =AVERAGE(N52:N63) ->  | O64: =MAX(O52:O63) -> 0
J66: =+A5 -> 2024 | K66: mg/Nm3 | L66: Monthly mean of half-hourly averages | M66: Highest half- hourly average | N66: Monthly mean of daily averages | O66: Highest daily average
J67: A5 | K67: Jan
K68: Feb
K69: Mar
K70: Apr
K71: May
K72: Jun
K73: Jul
K74: Aug
K75: Sep
K76: Oct
K77: Nov
K78: Dec
K79: Annual | L79: =AVERAGE(L67:L78) ->  | M79: =MAX(M67:M78) -> 0 | N79: =AVERAGE(N67:N78) ->  | O79: =MAX(O67:O78) -> 0

Sheet TOC
A1: =+'Cover Page'!$B$29 -> Annual Performance Report 2024 | E1: =+'Cover Page'!$B$33 -> Eastcroft EfW Site
A3: Monitoring of Total organic carbon emissions | D3: Whole Installation | G3: See Notes in Cell Q3 | J3: =+A3 -> Monitoring of Total organic carbon emissions | N3: Per Combustion Line | Q3: Notes:
Q4: User to add logic to complete Whole installation, Table A5:G18. From the data in Per Combustion Line, Table J6:O79, subject to No. of lines installed
A5: =+'Cover Page'!C39 -> 2024 | B5: 1/2 Hourly Reference Periods | E5: Daily Reference Periods
A6: mg/Nm3 | B6: 1/2 hourly TOC ELV | C6: Monthly mean of half-hourly averages | D6: Highest half- hourly average | E6: Daily TOC ELV | F6: Monthly mean of daily averages | G6: Highest daily average | J6: =+A5 -> 2024 | K6: mg/Nm3 | L6: Monthly mean of half-hourly averages | M6: Highest half- hourly average | N6: Monthly mean of daily averages | O6: Highest daily average
A7: Jan | B7: 20 | C7: 0.85 | D7: 35.3 | E7: 10 | F7: 0.8 | G7: 2.7 | J7: A1 | K7: Jan | L7: 0.9 | M7: 24.3 | N7: 0.8 | O7: 1.4
A8: Feb | B8: 20 | C8: 0.85 | D8: 38.3 | E8: 10 | F8: 0.75 | G8: 1.8 | K8: Feb | L8: 0.9 | M8: 30.1 | N8: 0.8 | O8: 1.8
A9: Mar | B9: 20 | C9: 0.75 | D9: 35.8 | E9: 10 | F9: 0.75 | G9: 2.2 | K9: Mar | L9: 0.8 | M9: 13.4 | N9: 0.8 | O9: 1.3 | Q9: Whole Installation table A5:G18:
A10: Apr | B10: 20 | C10: 0.75 | D10: 34.6 | E10: 10 | F10: 0.75 | G10: 1.5 | K10: Apr | L10: 0.8 | M10: 34.6 | N10: 0.8 | O10: 1.5 | Q10: Mean: for 1/2 hourly and daily periods calculate mean of values across all operational combustion lines for the month
A11: May | B11: 20 | C11: 0.8 | D11: 27.8 | E11: 10 | F11: 0.8 | G11: 1.5 | K11: May | L11: 0.8 | M11: 17.9 | N11: 0.8 | O11: 1.1
A12: Jun | B12: 20 | C12: 0.8 | D12: 11.7 | E12: 10 | F12: 0.75 | G12: 1.2 | K12: Jun | L12: 0.8 | M12: 9.6 | N12: 0.8 | O12: 1.1
A13: Jul | B13: 20 | C13: 0.8 | D13: 18.6 | E13: 10 | F13: 0.7 | G13: 1.2 | K13: Jul | L13: 0.9 | M13: 18 | N13: 0.8 | O13: 1.2 | Q13: Maximum: for 1/2 hourly and daily periods use the highest value across all operational combustion lines for the month
A14: Aug | B14: 20 | C14: 0.75 | D14: 26.3 | E14: 10 | F14: 0.75 | G14: 1.2 | K14: Aug | L14: 0.7 | M14: 26.3 | N14: 0.7 | O14: 1.1
A15: Sep | B15: 20 | C15: 0.6 | D15: 29.5 | E15: 10 | F15: 0.6 | G15: 2.4 | K15: Sep | L15: 0.2 | M15: 29.5 | N15: 0.2 | O15: 0.8
A16: Oct | B16: 20 | C16: 0.15 | D16: 24 | E16: 10 | F16: 0.1 | G16: 0.6 | K16: Oct | L16: 0.2 | M16: 22.7 | N16: 0.1 | O16: 0.6
A17: Nov | B17: 20 | C17: 0.2 | D17: 34.2 | E17: 10 | F17: 0.15 | G17: 1.1 | K17: Nov | L17: 0.2 | M17: 12.3 | N17: 0.2 | O17: 0.4
A18: Dec | B18: 20 | C18: 0.2 | D18: 29.3 | E18: 10 | F18: 0.1 | G18: 1.6 | K18: Dec | L18: 0.2 | M18: 18.6 | N18: 0.1 | O18: 0.6
K19: Annual | L19: =AVERAGE(L7:L18) -> 0.6166666667 | M19: =MAX(M7:M18) -> 34.6 | N19: =AVERAGE(N7:N18) -> 0.575 | O19: =MAX(O7:O18) -> 1.8
J21: =+A5 -> 2024 | K21: mg/Nm3 | L21: Monthly mean of half-hourly averages | M21: Highest half- hourly average | N21: Monthly mean of daily averages | O21: Highest daily average
J22: A2 | K22: Jan | L22: 0.8 | M22: 35.3 | N22: 0.8 | O22: 2.7
K23: Feb | L23: 0.8 | M23: 38.3 | N23: 0.7 | O23: 1.4
K24: Mar | L24: 0.7 | M24: 35.8 | N24: 0.7 | O24: 2.2
K25: Apr | L25: 0.7 | M25: 32 | N25: 0.7 | O25: 1.5
K26: May | L26: 0.8 | M26: 27.8 | N26: 0.8 | O26: 1.5
K27: Jun | L27: 0.8 | M27: 11.7 | N27: 0.7 | O27: 1.2
K28: Jul | L28: 0.7 | M28: 18.6 | N28: 0.6 | O28: 1.2
K29: Aug | L29: 0.8 | M29: 22.2 | N29: 0.8 | O29: 1.2
K30: Sep | L30: 1 | M30: 29.5 | N30: 1 | O30: 2.4
K31: Oct | L31: 0.1 | M31: 24 | N31: 0.1 | O31: 0.5
K32: Nov | L32: 0.2 | M32: 34.2 | N32: 0.1 | O32: 1.1
K33: Dec | L33: 0.2 | M33: 29.3 | N33: 0.1 | O33: 1.6
K34: Annual | L34: =AVERAGE(L22:L33) -> 0.6333333333 | M34: =MAX(M22:M33) -> 38.3 | N34: =AVERAGE(N22:N33) -> 0.5916666667 | O34: =MAX(O22:O33) -> 2.7
J36: =+A5 -> 2024 | K36: mg/Nm3 | L36: Monthly mean of half-hourly averages | M36: Highest half- hourly average | N36: Monthly mean of daily averages | O36: Highest daily average
J37: A3 | K37: Jan
K38: Feb
K39: Mar
K40: Apr
K41: May
K42: Jun
K43: Jul
K44: Aug
K45: Sep
K46: Oct
K47: Nov
A48: Comments : | K48: Dec
K49: Annual | L49: =AVERAGE(L37:L48) ->  | M49: =MAX(M37:M48) -> 0 | N49: =AVERAGE(N37:N48) ->  | O49: =MAX(O37:O48) -> 0
J51: =+A5 -> 2024 | K51: mg/Nm3 | L51: Monthly mean of half-hourly averages | M51: Highest half- hourly average | N51: Monthly mean of daily averages | O51: Highest daily average
J52: A4 | K52: Jan
K53: Feb
K54: Mar
K55: Apr
K56: May
K57: Jun
K58: Jul
K59: Aug
K60: Sep
K61: Oct
K62: Nov
K63: Dec
K64: Annual | L64: =AVERAGE(L52:L63) ->  | M64: =MAX(M52:M63) -> 0 | N64: =AVERAGE(N52:N63) ->  | O64: =MAX(O52:O63) -> 0
J66: =+A5 -> 2024 | K66: mg/Nm3 | L66: Monthly mean of half-hourly averages | M66: Highest half- hourly average | N66: Monthly mean of daily averages | O66: Highest daily average
J67: A5 | K67: Jan
K68: Feb
K69: Mar
K70: Apr
K71: May
K72: Jun
K73: Jul
K74: Aug
K75: Sep
K76: Oct
K77: Nov
K78: Dec
K79: Annual | L79: =AVERAGE(L67:L78) ->  | M79: =MAX(M67:M78) -> 0 | N79: =AVERAGE(N67:N78) ->  | O79: =MAX(O67:O78) -> 0

Sheet Particulates
A1: =+'Cover Page'!$B$29 -> Annual Performance Report 2024 | E1: =+'Cover Page'!$B$33 -> Eastcroft EfW Site
A3: Monitoring of Particulate matter emissions | D3: Whole Installation | G3: See Notes in Cell Q3 | J3: =+A3 -> Monitoring of Particulate matter emissions | N3: Per Combustion Line | Q3: Notes:
A5: =+'Cover Page'!C39 -> 2024 | B5: 1/2 Hourly Reference Periods | E5: Daily Reference Periods | Q5: User to add logic to complete Whole installation, Table A5:G18. From the data in Per Combustion Line, Table J6:O79, subject to No. of lines installed
A6: mg/Nm3 | B6: 1/2 hourly PM ELV | C6: Monthly mean of half-hourly averages | D6: Highest half- hourly average | E6: Daily PM ELV | F6: Monthly mean of daily averages | G6: Highest daily average | J6: =+A5 -> 2024 | K6: mg/Nm3 | L6: Monthly mean of half-hourly averages | M6: Highest half- hourly average | N6: Monthly mean of daily averages | O6: Highest daily average
A7: Jan | B7: 30 | C7: 0.55 | D7: 3.7 | E7: 5 | F7: 0.5 | G7: 0.8 | J7: A1 | K7: Jan | L7: 0.5 | M7: 3.7 | N7: 0.4 | O7: 0.7
A8: Feb | B8: 30 | C8: 0.65 | D8: 5.7 | E8: 5 | F8: 0.6 | G8: 1.3 | K8: Feb | L8: 0.6 | M8: 1.9 | N8: 0.5 | O8: 0.9
A9: Mar | B9: 30 | C9: 0.75 | D9: 10.3 | E9: 5 | F9: 0.75 | G9: 1.8 | K9: Mar | L9: 0.8 | M9: 7.9 | N9: 0.8 | O9: 1.8
A10: Apr | B10: 30 | C10: 0.45 | D10: 6.5 | E10: 5 | F10: 0.4 | G10: 1.4 | K10: Apr | L10: 0.4 | M10: 6.5 | N10: 0.3 | O10: 1.4 | Q10: Whole Installation table A5:G18:
A11: May | B11: 30 | C11: 0.8 | D11: 9.1 | E11: 5 | F11: 0.75 | G11: 3 | K11: May | L11: 1 | M11: 9.1 | N11: 0.9 | O11: 3 | Q11: Mean: for 1/2 hourly and daily periods calculate mean of values across all operational combustion lines for the month
A12: Jun | B12: 30 | C12: 0.7 | D12: 7.2 | E12: 5 | F12: 0.7 | G12: 1.6 | K12: Jun | L12: 0.8 | M12: 7.2 | N12: 0.8 | O12: 1.6
A13: Jul | B13: 30 | C13: 0.1 | D13: 1.5 | E13: 5 | F13: 0.05 | G13: 0.2 | K13: Jul | L13: 0.1 | M13: 0.9 | N13: 0 | O13: 0.1
A14: Aug | B14: 30 | C14: 0.15 | D14: 1.3 | E14: 5 | F14: 0.15 | G14: 0.2 | K14: Aug | L14: 0.1 | M14: 0.4 | N14: 0.1 | O14: 0.1 | Q14: Maximum: for 1/2 hourly and daily periods use the highest value across all operational combustion lines for the month
A15: Sep | B15: 30 | C15: 0.15 | D15: 5.3 | E15: 5 | F15: 0.15 | G15: 0.5 | K15: Sep | L15: 0.1 | M15: 0.4 | N15: 0.1 | O15: 0.2
A16: Oct | B16: 30 | C16: 0.2 | D16: 0.3 | E16: 5 | F16: 0.15 | G16: 0.2 | K16: Oct | L16: 0.2 | M16: 0.3 | N16: 0.1 | O16: 0.2
A17: Nov | B17: 30 | C17: 0.2 | D17: 0.4 | E17: 5 | F17: 0.2 | G17: 0.2 | K17: Nov | L17: 0.2 | M17: 0.4 | N17: 0.2 | O17: 0.2
A18: Dec | B18: 30 | C18: 0.2 | D18: 0.4 | E18: 5 | F18: 0.2 | G18: 0.3 | K18: Dec | L18: 0.2 | M18: 0.4 | N18: 0.2 | O18: 0.3
K19: Annual | L19: =AVERAGE(L7:L18) -> 0.4166666667 | M19: =MAX(M7:M18) -> 9.1 | N19: =AVERAGE(N7:N18) -> 0.3666666667 | O19: =MAX(O7:O18) -> 3
J21: =+A5 -> 2024 | K21: mg/Nm3 | L21: Monthly mean of half-hourly averages | M21: Highest half- hourly average | N21: Monthly mean of daily averages | O21: Highest daily average
J22: A2 | K22: Jan | L22: 0.6 | M22: 1.7 | N22: 0.6 | O22: 0.8
K23: Feb | L23: 0.7 | M23: 5.7 | N23: 0.7 | O23: 1.3
K24: Mar | L24: 0.7 | M24: 10.3 | N24: 0.7 | O24: 1.7
K25: Apr | L25: 0.5 | M25: 1.4 | N25: 0.5 | O25: 0.6
K26: May | L26: 0.6 | M26: 2.9 | N26: 0.6 | O26: 1.6
K27: Jun | L27: 0.6 | M27: 2.4 | N27: 0.6 | O27: 0.7
K28: Jul | L28: 0.1 | M28: 1.5 | N28: 0.1 | O28: 0.2
K29: Aug | L29: 0.2 | M29: 1.3 | N29: 0.2 | O29: 0.2
K30: Sep | L30: 0.2 | M30: 5.3 | N30: 0.2 | O30: 0.5
K31: Oct | L31: 0.2 | M31: 0.3 | N31: 0.2 | O31: 0.2
K32: Nov | L32: 0.2 | M32: 0.3 | N32: 0.2 | O32: 0.2
K33: Dec | L33: 0.2 | M33: 0.3 | N33: 0.2 | O33: 0.2
K34: Annual | L34: =AVERAGE(L22:L33) -> 0.4 | M34: =MAX(M22:M33) -> 10.3 | N34: =AVERAGE(N22:N33) -> 0.4 | O34: =MAX(O22:O33) -> 1.7
J36: =+A5 -> 2024 | K36: mg/Nm3 | L36: Monthly mean of half-hourly averages | M36: Highest half- hourly average | N36: Monthly mean of daily averages | O36: Highest daily average
J37: A3 | K37: Jan
K38: Feb
K39: Mar
K40: Apr
K41: May
K42: Jun
K43: Jul
K44: Aug
K45: Sep
K46: Oct
K47: Nov
A48: Comments : | K48: Dec
K49: Annual | L49: =AVERAGE(L37:L48) ->  | M49: =MAX(M37:M48) -> 0 | N49: =AVERAGE(N37:N48) ->  | O49: =MAX(O37:O48) -> 0
J51: =+A5 -> 2024 | K51: mg/Nm3 | L51: Monthly mean of half-hourly averages | M51: Highest half- hourly average | N51: Monthly mean of daily averages | O51: Highest daily average
J52: A4 | K52: Jan
K53: Feb
K54: Mar
K55: Apr
K56: May
K57: Jun
K58: Jul
K59: Aug
K60: Sep
K61: Oct
K62: Nov
K63: Dec
K64: Annual | L64: =AVERAGE(L52:L63) ->  | M64: =MAX(M52:M63) -> 0 | N64: =AVERAGE(N52:N63) ->  | O64: =MAX(O52:O63) -> 0
J66: =+A5 -> 2024 | K66: mg/Nm3 | L66: Monthly mean of half-hourly averages | M66: Highest half- hourly average | N66: Monthly mean of daily averages | O66: Highest daily average
J67: A5 | K67: Jan
K68: Feb
K69: Mar
K70: Apr
K71: May
K72: Jun
K73: Jul
K74: Aug
K75: Sep
K76: Oct
K77: Nov
K78: Dec
K79: Annual | L79: =AVERAGE(L67:L78) ->  | M79: =MAX(M67:M78) -> 0 | N79: =AVERAGE(N67:N78) ->  | O79: =MAX(O67:O78) -> 0

Sheet CO 0.5 hourly
A1: =+'Cover Page'!$B$29 -> Annual Performance Report 2024 | E1: =+'Cover Page'!$B$33 -> Eastcroft EfW Site
A3: Monitoring of Carbon Monoxide (half hourly) | D3: Whole Installation | G3: See Notes in Cell Q3 | J3: =+A3 -> Monitoring of Carbon Monoxide (half hourly) | N3: Per Combustion Line | Q3: Notes:
A5: Please complete this tab for your plant if you have 1/2 hourly CO ELVs; otherwise, leave it blank and complete the CO 95% 10 min tab
Q7: User to add logic to complete Whole installation, Table A5:G18. From the data in Per Combustion Line, Table J6:O79, subject to No. of lines installed
A8: =+'Cover Page'!C39 -> 2024 | B8: 1/2 Hourly Reference Periods | E8: Daily Reference Periods
A9: mg/Nm3 | B9: 1/2 hourly CO ELV | C9: Monthly mean of half-hourly averages | D9: Highest half- hourly average | E9: Daily CO ELV | F9: Monthly mean of daily averages | G9: Highest daily average | J9: =+A8 -> 2024 | K9: mg/Nm3 | L9: Monthly mean of half-hourly averages | M9: Highest half- hourly average | N9: Monthly mean of daily averages | O9: Highest daily average
A10: Jan | B10: 100 | E10: 50 | J10: A1 | K10: Jan
A11: Feb | B11: =+B10 -> 100 | E11: =+E10 -> 50 | K11: Feb
A12: Mar | B12: =+B11 -> 100 | E12: =+E11 -> 50 | K12: Mar | Q12: Whole Installation table A5:G18:
A13: Apr | B13: 100 | E13: 50 | K13: Apr | Q13: Mean: for 1/2 hourly and daily periods calculate mean of values across all operational combustion lines for the month
A14: May | B14: 100 | E14: 50 | K14: May
A15: Jun | B15: 100 | E15: 50 | K15: Jun
A16: Jul | B16: 100 | E16: 50 | K16: Jul | Q16: Maximum: for 1/2 hourly and daily periods use the highest value across all operational combustion lines for the month
A17: Aug | B17: 100 | E17: 50 | K17: Aug
A18: Sep | B18: 100 | E18: 50 | K18: Sep
A19: Oct | B19: 100 | E19: 50 | K19: Oct
A20: Nov | B20: 100 | E20: 50 | K20: Nov
A21: Dec | B21: 100 | E21: 50 | K21: Dec
K22: Annual | L22: =AVERAGE(L10:L21) ->  | M22: =MAX(M10:M21) -> 0 | N22: =AVERAGE(N10:N21) ->  | O22: =MAX(O10:O21) -> 0
J24: =+A8 -> 2024 | K24: mg/Nm3 | L24: Monthly mean of half-hourly averages | M24: Highest half- hourly average | N24: Monthly mean of daily averages | O24: Highest daily average
J25: A2 | K25: Jan
K26: Feb
K27: Mar
K28: Apr
K29: May
K30: Jun
K31: Jul
K32: Aug
K33: Sep
K34: Oct
K35: Nov
K36: Dec
K37: Annual | L37: =AVERAGE(L25:L36) ->  | M37: =MAX(M25:M36) -> 0 | N37: =AVERAGE(N25:N36) ->  | O37: =MAX(O25:O36) -> 0
J39: =+A8 -> 2024 | K39: mg/Nm3 | L39: Monthly mean of half-hourly averages | M39: Highest half- hourly average | N39: Monthly mean of daily averages | O39: Highest daily average
J40: A3 | K40: Jan
K41: Feb
K42: Mar
K43: Apr
K44: May
K45: Jun
K46: Jul
K47: Aug
K48: Sep
K49: Oct
K50: Nov
A51: Comments : | K51: Dec
K52: Annual | L52: =AVERAGE(L40:L51) ->  | M52: =MAX(M40:M51) -> 0 | N52: =AVERAGE(N40:N51) ->  | O52: =MAX(O40:O51) -> 0
J54: =+A8 -> 2024 | K54: mg/Nm3 | L54: Monthly mean of half-hourly averages | M54: Highest half- hourly average | N54: Monthly mean of daily averages | O54: Highest daily average
J55: A4 | K55: Jan
K56: Feb
K57: Mar
K58: Apr
K59: May
K60: Jun
K61: Jul
K62: Aug
K63: Sep
K64: Oct
K65: Nov
K66: Dec
K67: Annual | L67: =AVERAGE(L55:L66) ->  | M67: =MAX(M55:M66) -> 0 | N67: =AVERAGE(N55:N66) ->  | O67: =MAX(O55:O66) -> 0
J69: =+A8 -> 2024 | K69: mg/Nm3 | L69: Monthly mean of half-hourly averages | M69: Highest half- hourly average | N69: Monthly mean of daily averages | O69: Highest daily average
J70: A5 | K70: Jan
K71: Feb
K72: Mar
K73: Apr
K74: May
K75: Jun
K76: Jul
K77: Aug
K78: Sep
K79: Oct
K80: Nov
K81: Dec
K82: Annual | L82: =AVERAGE(L70:L81) ->  | M82: =MAX(M70:M81) -> 0 | N82: =AVERAGE(N70:N81) ->  | O82: =MAX(O70:O81) -> 0

Sheet CO 95% 10 min
A1: =+'Cover Page'!$B$29 -> Annual Performance Report 2024 | E1: =+'Cover Page'!$B$33 -> Eastcroft EfW Site
A3: Monitoring of Carbon Monoxide (10-minute avg) | E3: Whole Installation | H3: See Notes in Cell S3 | J3: =+A3 -> Monitoring of Carbon Monoxide (10-minute avg) | O3: Per Combustion Line | Q3: Notes: | S3: Notes:
A5: Please complete this tab for your plant if you have 10-minute average CO ELVs; otherwise, leave it blank and complete the CO 0.5 hourly tab
S7: User to add logic to complete Whole installation, Table A5:H18. From the data in Per Combustion Line, Table K6:Q79, subject to No. of lines installed
A8: =+'Cover Page'!C39 -> 2024 | B8: 10-minute Reference Periods | F8: Daily Reference Periods
A9: mg/Nm3 | B9: 95%ile 10-min avg CO ELV | C9: Highest daily 95%ile 10-min average | D9: Monthly mean of 10-min averages | E9: Highest 10-min average | F9: Daily CO ELV | G9: Monthly mean of daily averages | H9: Highest daily average | K9: =+A8 -> 2024 | L9: mg/Nm3 | M9: Highest daily 95%ile 10-min average | N9: Monthly mean of 10-min averages | O9: Highest 10-min average | P9: Monthly mean of daily averages | Q9: Highest daily average
A10: Jan | B10: 150 | C10: 20.9 | D10: 7.4 | E10: 410.7 | F10: 50 | G10: 7.35 | H10: 16.1 | K10: A1 | L10: Jan | M10: 20.9 | N10: 7.4 | O10: 410.7 | P10: 7.3 | Q10: 11.2
A11: Feb | B11: =+B10 -> 150 | C11: 80.3 | D11: 6.5 | E11: 477.5 | F11: =+F10 -> 50 | G11: 6.45 | H11: 16.2 | L11: Feb | M11: 80.3 | N11: 6.9 | O11: 477.5 | P11: 6.9 | Q11: 16.2
A12: Mar | B12: =+B11 -> 150 | C12: 56.7 | D12: 6.7 | E12: 1139.3 | F12: =+F11 -> 50 | G12: 6.65 | H12: 16 | L12: Mar | M12: 56.7 | N12: 7.5 | O12: 448.4 | P12: 7.4 | Q12: 15.8 | S12: Whole Installation table A5:H18:
A13: Apr | B13: 150 | C13: 39.1 | D13: 6 | E13: 501.6 | F13: 50 | G13: 5.95 | H13: 10.1 | L13: Apr | M13: 14 | N13: 5.9 | O13: 344.2 | P13: 5.8 | Q13: 9.2 | S13: Mean: for 10-min and daily periods use average of all operational combustion lines.
A14: May | B14: 150 | C14: 35 | D14: 6.35 | E14: 369.8 | F14: 50 | G14: 6.3 | H14: 11.2 | L14: May | M14: 35 | N14: 6.4 | O14: 369.8 | P14: 6.4 | Q14: 11.2
A15: Jun | B15: 150 | C15: 18.9 | D15: 7.05 | E15: 468.4 | F15: 50 | G15: 7 | H15: 12 | L15: Jun | M15: 18.9 | N15: 7.2 | O15: 206.3 | P15: 7.2 | Q15: 10.8
A16: Jul | B16: 150 | C16: 64.9 | D16: 8.65 | E16: 383.4 | F16: 50 | G16: 7.65 | H16: 29.8 | L16: Jul | M16: 25.5 | N16: 6.7 | O16: 252.1 | P16: 5.4 | Q16: 10.3 | S16: Maximum: for 10-min and daily periods use the highest of all operational combustion lines in any month.
A17: Aug | B17: 150 | C17: 34.2 | D17: 5.75 | E17: 429 | F17: 50 | G17: 6.2 | H17: 12.5 | L17: Aug | M17: 34.2 | N17: 5.8 | O17: 429 | P17: 6.7 | Q17: 10.4
A18: Sep | B18: 150 | C18: 52.3 | D18: 7.1 | E18: 448 | F18: 50 | G18: 6.95 | H18: 13.7 | L18: Sep | M18: 21 | N18: 7.6 | O18: 448 | P18: 7.6 | Q18: 13.7
A19: Oct | B19: 150 | C19: 27 | D19: 6.65 | E19: 432.7 | F19: 50 | G19: 6.65 | H19: 12.2 | L19: Oct | M19: 27 | N19: 6.7 | O19: 432.7 | P19: 6.7 | Q19: 11.9
A20: Nov | B20: 150 | C20: 34 | D20: 7.05 | E20: 335.8 | F20: 50 | G20: 6.9 | H20: 12.9 | L20: Nov | M20: 34 | N20: 7.9 | O20: 335.8 | P20: 7.7 | Q20: 12.9
A21: Dec | B21: 150 | C21: 21.3 | D21: 6.9 | E21: 656.5 | F21: 50 | G21: 6.75 | H21: 13.1 | L21: Dec | M21: 21.3 | N21: 6.9 | O21: 656.5 | P21: 6.7 | Q21: 9.4
L22: Annual | M22: =AVERAGE(M10:M21) -> 32.4 | O22: =MAX(O10:O21) -> 656.5 | P22: =AVERAGE(P10:P21) -> 6.816666667 | Q22: =MAX(Q10:Q21) -> 16.2
K24: =+A8 -> 2024 | L24: mg/Nm3 | M24: Highest daily 95%ile 10-min average | N24: Monthly mean of 10-min averages | O24: Highest 10-min average | P24: Monthly mean of daily averages | Q24: Highest daily average
K25: A2 | L25: Jan | M25: 20.7 | N25: 7.4 | O25: 376.6 | P25: 7.4 | Q25: 16.1
L26: Feb | M26: 15.3 | N26: 6.1 | O26: 227.3 | P26: 6 | Q26: 10.5
L27: Mar | M27: 23.5 | N27: 5.9 | O27: 1139.3 | P27: 5.9 | Q27: 16
L28: Apr | M28: 39.1 | N28: 6.1 | O28: 501.6 | P28: 6.1 | Q28: 10.1
L29: May | M29: 14.2 | N29: 6.3 | O29: 280.6 | P29: 6.2 | Q29: 9.1
L30: Jun | M30: 16.6 | N30: 6.9 | O30: 468.4 | P30: 6.8 | Q30: 12
L31: Jul | M31: 64.9 | N31: 10.6 | O31: 383.4 | P31: 9.9 | Q31: 29.8
L32: Aug | M32: 23.2 | N32: 5.7 | O32: 370 | P32: 5.7 | Q32: 12.5
L33: Sep | M33: 52.3 | N33: 6.6 | O33: 321.7 | P33: 6.3 | Q33: 12.3
L34: Oct | M34: 24.4 | N34: 6.6 | O34: 277.9 | P34: 6.6 | Q34: 12.2
L35: Nov | M35: 21.7 | N35: 6.2 | O35: 307.8 | P35: 6.1 | Q35: 10
L36: Dec | M36: 13.2 | N36: 6.9 | O36: 649.1 | P36: 6.8 | Q36: 13.1
L37: Annual | M37: =AVERAGE(M25:M36) -> 27.425 | O37: =MAX(O25:O36) -> 1139.3 | P37: =AVERAGE(P25:P36) -> 6.65 | Q37: =MAX(Q25:Q36) -> 29.8
K39: =+A8 -> 2024 | L39: mg/Nm3 | M39: Highest daily 95%ile 10-min average | N39: Monthly mean of 10-min averages | O39: Highest 10-min average | P39: Monthly mean of daily averages | Q39: Highest daily average
K40: A3 | L40: Jan
L41: Feb
L42: Mar
L43: Apr
L44: May
L45: Jun
L46: Jul
L47: Aug
L48: Sep
L49: Oct
L50: Nov
A51: Comments : | L51: Dec
A52: Environment Agency explanatory note: The 10-minute average ELV is based on the “95th percentile”. In this case this means that 95% of the 10 minute averages in the relevant 24-hour period (i.e. 137) must be below 150 mg/Nm3, and 5% (i.e. 7) are allowed to be any value above 150 mg/Nm3. Whilst we expect operators to minimise CO emissions at all times, it is perfectly acceptable for the value of the maximum 10-minute average to be above 150 mg/Nm3, provided the 95th percentile ELV has been met for that period. | L52: Annual | M52: =AVERAGE(M40:M51) ->  | O52: =MAX(O40:O51) -> 0 | P52: =AVERAGE(P40:P51) ->  | Q52: =MAX(Q40:Q51) -> 0
K54: =+A8 -> 2024 | L54: mg/Nm3 | M54: Highest daily 95%ile 10-min average | N54: Monthly mean of 10-min averages | O54: Highest 10-min average | P54: Monthly mean of daily averages | Q54: Highest daily average
K55: A4 | L55: Jan
L56: Feb
L57: Mar
L58: Apr
L59: May
L60: Jun
L61: Jul
L62: Aug
L63: Sep
L64: Oct
L65: Nov
L66: Dec
L67: Annual | M67: =AVERAGE(M55:M66) ->  | O67: =MAX(O55:O66) -> 0 | P67: =AVERAGE(P55:P66) ->  | Q67: =MAX(Q55:Q66) -> 0
K69: =+A8 -> 2024 | L69: mg/Nm3 | M69: 95%ile 10-min avg maximum | N69: Monthly CO 10-min avg mean | O69: 10-min avg maximum | P69: Monthly daily mean | Q69: Monthly daily maximum
K70: A5 | L70: Jan
L71: Feb
L72: Mar
L73: Apr
L74: May
L75: Jun
L76: Jul
L77: Aug
L78: Sep
L79: Oct
L80: Nov
L81: Dec
L82: Annual | M82: =AVERAGE(M70:M81) ->  | O82: =MAX(O70:O81) -> 0 | P82: =AVERAGE(P70:P81) ->  | Q82: =MAX(Q70:Q81) -> 0

Sheet NH3
A1: =+'Cover Page'!$B$29 -> Annual Performance Report 2024 | E1: =+'Cover Page'!$B$33 -> Eastcroft EfW Site
A3: Monitoring of Ammnonia emissions | D3: Whole Installation | G3: See Notes in Cell Q3 | J3: =+A3 -> Monitoring of Ammnonia emissions | N3: Per Combustion Line | Q3: Notes:
Q4: User to add logic to complete Whole installation, Table A5:G18. From the data in Per Combustion Line, Table J6:O79, subject to No. of lines installed
A5: =+'Cover Page'!C39 -> 2024 | B5: 1/2 Hourly Reference Periods | E5: Daily Reference Periods
A6: mg/Nm3 | B6: 1/2 hourly NH3 ELV | C6: Monthly mean of half-hourly averages | D6: Highest half- hourly average | E6: Daily NH3 ELV | F6: Monthly mean of daily averages | G6: Highest daily average | J6: =+A5 -> 2024 | K6: mg/Nm3 | L6: Monthly mean of half-hourly averages | M6: Highest half- hourly average | N6: Monthly mean of daily averages | O6: Highest daily average
A7: Jan | B7: None | C7: 1.55 | D7: 13.9 | E7: 15 | F7: 1.5 | G7: 3.4 | J7: A1 | K7: Jan | L7: 1.2 | M7: 7 | N7: 1.1 | O7: 2.4
A8: Feb | B8: =+B7 -> None | C8: 1.75 | D8: 12.2 | E8: 15 | F8: 1.75 | G8: 3.1 | K8: Feb | L8: 1.5 | M8: 9.4 | N8: 1.5 | O8: 2.5
A9: Mar | B9: =+B8 -> None | C9: 1.8 | D9: 10 | E9: 15 | F9: 1.75 | G9: 3 | K9: Mar | L9: 1.6 | M9: 9.8 | N9: 1.5 | O9: 2.1 | Q9: Whole Installation table A5:G18:
A10: Apr | B10: None | C10: 1.5 | D10: 7.4 | E10: 15 | F10: 1.45 | G10: 2.4 | K10: Apr | L10: 1.3 | M10: 5.9 | N10: 1.3 | O10: 2.4 | Q10: Mean: for 1/2 hourly and daily periods calculate mean of values across all operational combustion lines for the month
A11: May | B11: None | C11: 1.5 | D11: 9.5 | E11: 15 | F11: 1.5 | G11: 2.4 | K11: May | L11: 1.2 | M11: 8.3 | N11: 1.2 | O11: 1.8
A12: Jun | B12: None | C12: 1.55 | D12: 17.7 | E12: 15 | F12: 1.5 | G12: 2.7 | K12: Jun | L12: 1.2 | M12: 8.8 | N12: 1.2 | O12: 2.1
A13: Jul | B13: None | C13: 3.8 | D13: 24.8 | E13: 15 | F13: 3.5 | G13: 12.2 | K13: Jul | L13: 2.3 | M13: 12.2 | N13: 2.2 | O13: 4.7 | Q13: Maximum: for 1/2 hourly and daily periods use the highest value across all operational combustion lines for the month
A14: Aug | B14: None | C14: 1.25 | D14: 6.6 | E14: 15 | F14: 1.2 | G14: 2.1 | K14: Aug | L14: 1 | M14: 4 | N14: 0.9 | O14: 1.9
A15: Sep | B15: None | C15: 0.95 | D15: 10.6 | E15: 15 | F15: 0.9 | G15: 1.6 | K15: Sep | L15: 0.9 | M15: 10.6 | N15: 0.9 | O15: 1.6
A16: Oct | B16: None | C16: 1.15 | D16: 7.9 | E16: 15 | F16: 1.15 | G16: 2 | K16: Oct | L16: 1 | M16: 7.9 | N16: 1 | O16: 1.5
A17: Nov | B17: None | C17: 0.95 | D17: 7 | E17: 15 | F17: 0.85 | G17: 2.3 | K17: Nov | L17: 0.8 | M17: 7 | N17: 0.7 | O17: 1.2
A18: Dec | B18: None | C18: 0.65 | D18: 6.8 | E18: 15 | F18: 0.6 | G18: 2.1 | K18: Dec | L18: 0.5 | M18: 5.5 | N18: 0.5 | O18: 0.9
K19: Annual | L19: =AVERAGE(L7:L18) -> 1.208333333 | M19: =MAX(M7:M18) -> 12.2 | N19: =AVERAGE(N7:N18) -> 1.166666667 | O19: =MAX(O7:O18) -> 4.7
J21: =+A5 -> 2024 | K21: mg/Nm3 | L21: Monthly mean of half-hourly averages | M21: Highest half- hourly average | N21: Monthly mean of daily averages | O21: Highest daily average
J22: A2 | K22: Jan | L22: 1.9 | M22: 13.9 | N22: 1.9 | O22: 3.4
K23: Feb | L23: 2 | M23: 12.2 | N23: 2 | O23: 3.1
K24: Mar | L24: 2 | M24: 10 | N24: 2 | O24: 3
K25: Apr | L25: 1.7 | M25: 7.4 | N25: 1.6 | O25: 2.4
K26: May | L26: 1.8 | M26: 9.5 | N26: 1.8 | O26: 2.4
K27: Jun | L27: 1.9 | M27: 17.7 | N27: 1.8 | O27: 2.7
K28: Jul | L28: 5.3 | M28: 24.8 | N28: 4.8 | O28: 12.2
K29: Aug | L29: 1.5 | M29: 6.6 | N29: 1.5 | O29: 2.1
K30: Sep | L30: 1 | M30: 4.4 | N30: 0.9 | O30: 1.5
K31: Oct | L31: 1.3 | M31: 6.4 | N31: 1.3 | O31: 2
K32: Nov | L32: 1.1 | M32: 3.6 | N32: 1 | O32: 2.3
K33: Dec | L33: 0.8 | M33: 6.8 | N33: 0.7 | O33: 2.1
K34: Annual | L34: =AVERAGE(L22:L33) -> 1.858333333 | M34: =MAX(M22:M33) -> 24.8 | N34: =AVERAGE(N22:N33) -> 1.775 | O34: =MAX(O22:O33) -> 12.2
J36: =+A5 -> 2024 | K36: mg/Nm3 | L36: Monthly mean of half-hourly averages | M36: Highest half- hourly average | N36: Monthly mean of daily averages | O36: Highest daily average
J37: A3 | K37: Jan
K38: Feb
K39: Mar
K40: Apr
K41: May
K42: Jun
K43: Jul
K44: Aug
K45: Sep
K46: Oct
K47: Nov
A48: Comments : | K48: Dec
A49: An indicated ELV value of zero in the table above means that no ammonia limit is/was set in the permit. | K49: Annual | L49: =AVERAGE(L37:L48) ->  | M49: =MAX(M37:M48) -> 0 | N49: =AVERAGE(N37:N48) ->  | O49: =MAX(O37:O48) -> 0
J51: =+A5 -> 2024 | K51: mg/Nm3 | L51: Monthly mean of half-hourly averages | M51: Highest half- hourly average | N51: Monthly mean of daily averages | O51: Highest daily average
J52: A4 | K52: Jan
K53: Feb
K54: Mar
K55: Apr
K56: May
K57: Jun
K58: Jul
K59: Aug
K60: Sep
K61: Oct
K62: Nov
K63: Dec
K64: Annual | L64: =AVERAGE(L52:L63) ->  | M64: =MAX(M52:M63) -> 0 | N64: =AVERAGE(N52:N63) ->  | O64: =MAX(O52:O63) -> 0
J66: =+A5 -> 2024 | K66: mg/Nm3 | L66: Monthly mean of half-hourly averages | M66: Highest half- hourly average | N66: Monthly mean of daily averages | O66: Highest daily average
J67: A5 | K67: Jan
K68: Feb
K69: Mar
K70: Apr
K71: May
K72: Jun
K73: Jul
K74: Aug
K75: Sep
K76: Oct
K77: Nov
K78: Dec
K79: Annual | L79: =AVERAGE(L67:L78) ->  | M79: =MAX(M67:M78) -> 0 | N79: =AVERAGE(N67:N78) ->  | O79: =MAX(O67:O78) -> 0

Sheet Template changes log
A1: Log of changes to template (Environment Agency use only)
A3: Date | B3: Description of change | C3: New version number and date
A4: 2024-01-16 | B4: Air (periodic) tab: corrected default O2 reference from 6 to 11% | C4: Version 23.5a (for incinerators) - 16/01/2024
A5: 2024-09-23 | B5: Air (periodic) tab: corrected symbol for Thallium to Tl
A6: 2024-09-23 | B6: Air (periodic) tab: removed last year's references to different emission limit values applying from 03/12/23 and updated all relevant ELVs
A7: 2024-09-23 | B7: Tabs for continuously monitored pollutants (HCl, SO2 etc.): changed terminology in table headings to improve clarity
A8: 2024-09-23 | B8: Tabs for continuously monitored pollutants (HCl, SO2 etc.): removed last year's references to different emission limit values applying from 03/12/23 and updated all relevant ELVs
A9: 2024-09-23 | B9: Perf 1 tab: updated formula for water usage to report m3 rather than litres and corrected error with formula copying operator name
A10: 2024-09-23 | B10: Operational Summary tab: table added on start-ups and shut-downs
A11: 2024-09-23 | B11: Operational Summary tab: table added on dioxins and mercury protocols
A12: 2024-09-23 | B12: Operational Summary tab: table added on AST, QAL 2 and calibration functions
A13: 2024-09-23 | B13: CO2 N2O tab: various changes made to notes to reflect the fact that most plants should now have calibrated CEMS and flow meters + some have C14 samplers and more up to date industry data | C13: Version 24a (for incinerators) - 23/09/24
A14: 2024-11-08 | B14: CO2 N2O tab: Changed the N2O CO2 equivalence factor from 298 to 265 in line with recently updated government greenhouse gas figures: https://www.gov.uk/government/publications/greenhouse-gas-reporting-conversion-factors-2024
A15: 2024-11-08 | B15: CO2 N2O tab: Added an additional requirement for municipal EfW plants to state the yearly average biogenic percentage of the waste by mass, and reference to a document which sets out a methodology for calculating NCV of waste from the results of C14 sampling.
A16: 2024-11-08 | B16: Permit Compliance tab: Two additional columns added + explanatory notes to the table entitled "Summary of non-compliances under the permit" to allow CCS scores to be stated where relevant.
A17: 2024-11-08 | B17: Residue Quality tab: Note added explaining application of TOC and LOI limits and asking operators to report both metrics where measured. | C17: Version 24.1a (for incinerators) - 08/11/24
A18: 2024-11-27 | B18: Operational Summary tab: Tables on mercury & dioxins protocols and ASTs removed (covered instead by new tables added to updated Air 9 periodic monitoring form) | C18: Version 24.2a (for incinerators) - 27/11/24

Sheet Sheet1
